Cogmind - Beta 12 X1 @@@ ROGUE MODE // 2022.07.24 @ 22:16:24 Player: cptwinky Result: Escaped! Performance ------------- Evolutions (9) 4500 Regions Visited (33) 6600 Robots Destroyed (538) 2690 Value Destroyed (23282) 23282 Prototype IDs (133) 2660 Alien Tech Used (2) 400 Bonus (13791) 13791 TOTAL SCORE: 53923 Bonus ------- Triggered High Security 500 High Alert Combat Kills 6824 Follower Combat Kills 2344 Entered Garrisons 200 Entered DSFs 500 Aligned with FarCom 300 Met Data Miner 300 Met Imprinter 300 Was Imprinted 300 Met Zhirov 300 Met Warlord at Base 500 MAIN.C Attacked Warlord 500 Warlord Defense Kills 1096 Win 3000 Friendly Fire -3173 Cogmind --------- Core Integrity 330/1600 Matter 246/300 Energy 99/100 System Corruption 11% Temperature Cool (0) Movement Core (50) Location To Epsilon Eridani Parts ------- > --- POWER (3) -------- (None) > --- PROPULSION (8) --- (None) > --- UTILITY (12) ----- Advanced Signal Interpreter 0b10 Decoder Chip [Scout] Advanced Targeting Computer Advanced Targeting Computer Improved Trap Extractor (5/6 Dirty Bomb) > --- WEAPON (3) ------- (None) > --- INVENTORY (5) ---- Advanced Energy Well (225) Makeshift Trap Scanner Advanced Component Analysis Suite Improved Trap Extractor (5/6 Tesla Bomb) Advanced Trap Extractor (4/8 Shock) Peak State ------------ > --- POWER ------------ Quantum Reactor Light Quantum Reactor Light Quantum Reactor > --- PROPULSION ------- Biometal Heavy Treads Biometal Heavy Treads Biometal Heavy Treads Biometal Heavy Treads > --- UTILITY ---------- Advanced Heat Sink Advanced Cooling System Huge Storage Unit Advanced Signal Interpreter 0b10 Decoder Chip [Scout] Advanced Targeting Computer Advanced Targeting Computer Advanced Targeting Computer Advanced Target Analyzer Advanced Transmission Jammer Improved Focal Shield Advanced Corruption Screen > --- WEAPON ----------- Enhanced Nova Cannon Enhanced Nova Cannon Enhanced Nova Cannon > --- INVENTORY -------- Improved Heavy Treads Biometal Heavy Treads Biometal Heavy Treads Advanced Energy Well Matter Compressor Makeshift Trap Scanner Makeshift Sensor Array Advanced Component Analysis Suite Long-range Tractor Beam Improved Trap Extractor Improved Trap Extractor Improved Trap Extractor Advanced Trap Extractor Transdimensional Reconstructor Zionite Phaser-M Compact HERF Cannon Enhanced Nova Cannon Enhanced Nova Cannon Helical Railgun Precision Rocket Launcher Precision Rocket Launcher Improved Datajack [Rating: 202] Favorites ----------- Power Cooled Ion Engine Engine Cooled Ion Engine Power Core Reinforced Fission Core Reactor Vortex Chain Reactor Propulsion Improved Medium Treads Treads Improved Medium Treads Leg Aluminum Leg Wheel Armored Huge Wheel Hover Unit Aerolev Unit Utility Advanced Signal Interpreter Device Advanced Heat Sink Storage Huge Storage Unit Processor Advanced Signal Interpreter Hackware EX Chip 2 Protection Layered Heavy Armor Plating Weapon Gauss Rifle Energy Gun Thermic Laser Energy Cannon Enhanced Nova Cannon Ballistic Gun Gauss Rifle Ballistic Cannon Improved Light Cannon Launcher Precision Rocket Launcher Special Weapon Flamer Impact Weapon Makeshift Hammer Special Melee Weapon Improved Datajack Build | -11 -10 -10 -9 -9 -9 -8 -8 -7 -7 -7 -7 -6 -6 -6 -6 -6 -5 -5 -5 -5 -5 -4 -4 -4 -4 -4 -3 -3 -3 -3 -2 -2 -1 ------- Run | Scr Mat Min Mat Min Exi Min Mat Fac Low Low Zio Pro Fac Low Low Dat Pro Fac Upp Upp War Pro Fac Upp Upp Zhi Pro Res Gar Res Res DSF Acc Slots Evolved 18 | . . . 2 . . . 2 2 . . . . 2 . . . . 2 . . . . 2 . . . . 2 . . 2 . 2 Power 1 | . . . . . . . . . . . . . . . . . . . . . . . . . . . . . . . 1 . . Propulsion 6 | . . . 1 . . . 1 . . . . . . . . . . 1 . . . . 1 . . . . . . . . . 2 Utility 10 | . . . 1 . . . 1 1 . . . . 2 . . . . 1 . . . . 1 . . . . 2 . . 1 . . Weapon 1 | . . . . . . . . 1 . . . . . . . . . . . . . . . . . . . . . . . . . Parts Attached 734 | 2 6 5 21 4 18 1 47 35 8 17 14 24 96 18 27 3 12 9 14 17 18 38 32 10 26 10 31 47 10 41 . 19 54 Power 34 | . 2 . 4 . 2 . . . . . 1 1 5 1 2 . . . 1 . 1 . . . . 2 . 1 . 1 . 5 5 Engine 15 | . 2 . 4 . 2 . . . . . . . 4 . 2 . . . 1 . . . . . . . . . . . . . . Core 3 | . . . . . . . . . . . . . . 1 . . . . . . . . . . . 1 . 1 . . . . . Reactor 16 | . . . . . . . . . . . 1 1 1 . . . . . . . 1 . . . . 1 . . . 1 . 5 5 Propulsion 86 | 2 1 . 7 . 5 . 14 3 1 . 1 5 10 2 3 . . 2 1 1 2 2 4 . 1 . . 6 . 4 . 5 4 Treads 83 | 2 1 . 7 . 5 . 13 3 1 . 1 4 10 2 3 . . 2 1 1 1 2 4 . 1 . . 6 . 4 . 5 4 Leg 1 | . . . . . . . . . . . . . . . . . . . . . 1 . . . . . . . . . . . . Wheel 1 | . . . . . . . . . . . . 1 . . . . . . . . . . . . . . . . . . . . . Hover 1 | . . . . . . . 1 . . . . . . . . . . . . . . . . . . . . . . . . . . Flight . | . . . . . . . . . . . . . . . . . . . . . . . . . . . . . . . . . . Utility 317 | . 1 1 4 . 2 . 15 19 3 8 7 11 45 12 17 . 6 2 7 12 11 18 17 3 14 3 10 22 6 21 . 5 15 Device 233 | . 1 1 1 . 2 . 7 13 2 6 7 11 33 9 12 . 5 1 5 8 8 17 13 3 9 2 6 16 5 16 . 2 12 Storage 5 | . . . 2 . . . 1 . . . . . 1 . . . . . . . . . . . . . . . . . . . 1 Processor 19 | . . . . . . . 1 1 . . . . 3 1 2 . . . . . 2 . 2 . . . . . . 3 . 3 1 Hackware 3 | . . . . . . . 1 . . . . . 2 . . . . . . . . . . . . . . . . . . . . Protection 57 | . . . 1 . . . 5 5 1 2 . . 6 2 3 . 1 1 2 4 1 1 2 . 5 1 4 6 1 2 . . 1 Artifact . | . . . . . . . . . . . . . . . . . . . . . . . . . . . . . . . . . . Weapon 297 | . 2 4 6 4 9 1 18 13 4 9 5 7 36 3 5 3 6 5 5 4 4 18 11 7 11 5 21 18 4 15 . 4 30 Energy Gun 66 | . 2 2 5 . 1 . . . . . . . 6 . . . 2 2 2 1 2 5 2 3 3 1 9 11 2 2 . 2 1 Energy Cannon 28 | . . . . 2 1 1 1 . . 1 . 1 1 . 1 . . . . . . 1 . . . . . . . . . 2 16 Ballistic Gun 93 | . . . 1 1 . . 4 7 2 5 3 3 14 2 3 1 2 . 2 2 1 6 5 3 5 1 8 2 . 9 . . 1 Ballistic Cannon 16 | . . . . . 4 . 8 . . . . . 1 . . . . . . . . 3 . . . . . . . . . . . Launcher 54 | . . 2 . 1 2 . 2 2 1 1 . 3 5 1 . 1 1 . 1 1 . 3 2 1 1 2 3 2 1 4 . . 11 Special Weapon 2 | . . . . . . . . 1 . . . . . . . . . 1 . . . . . . . . . . . . . . . Impact Weapon 12 | . . . . . . . 1 2 1 2 . . 3 . 1 . . 1 . . 1 . . . . . . . . . . . . Slashing Weapon . | . . . . . . . . . . . . . . . . . . . . . . . . . . . . . . . . . . Piercing Weapon . | . . . . . . . . . . . . . . . . . . . . . . . . . . . . . . . . . . Special Melee Weapon 26 | . . . . . 1 . 2 1 . . 2 . 6 . . 1 1 1 . . . . 2 . 2 1 1 3 1 . . . 1 Unidentified Prototypes 22 | . . . 2 . . . 2 . . 1 1 . 1 . . . . . . 1 7 . . . . 4 1 1 . 1 . . . Corrupted Parts 1 | . . . . . . . . . . . . 1 . . . . . . . . . . . . . . . . . . . . . System Corruption 1 | . . . . . . . . . . . . 1 . . . . . . . . . . . . . . . . . . . . . Parts Lost 69 | . 1 . 2 . 1 1 1 . . . . . 9 1 4 . . . . . . 5 . . . . . 2 1 5 . 5 31 Power 9 | . . . . . . . . . . . . . 2 . 1 . . . . . . . . . . . . . . . . 1 5 Propulsion 12 | . . . . . 1 . . . . . . . 2 1 1 . . . . . . . . . . . . . . . . . 7 Utility 25 | . . . 1 . . . 1 . . . . . 4 . 1 . . . . . . 1 . . . . . 2 1 4 . 1 9 Weapon 23 | . 1 . 1 . . 1 . . . . . . 1 . 1 . . . . . . 4 . . . . . . . 1 . 3 10 Highest Loss Streak 22 | . 1 . 1 . 1 1 1 . . . . . 5 1 3 . . . . . . 2 . . . . . 1 1 2 . 3 22 To Critical Strikes 1 | . . . . . . 1 . . . . . . . . . . . . . . . . . . . . . . . . . . . Average Slot Usage (%) 91 | . 96 100 95 100 100 100 99 99 99 97 95 99 87 99 98 100 99 97 100 95 88 82 80 80 79 79 84 83 80 80 75 79 80 Engine 5 | . 14 14 10 11 11 11 9 7 7 7 7 7 8 5 1 12 12 11 11 11 7 . . . . . . . . . . . . Reactor 3 | . . . . . . . . . . . 3 6 3 6 3 . . . . . 1 5 5 5 5 5 5 4 4 6 8 8 10 Treads 23 | . 27 28 32 33 33 33 36 30 29 29 28 27 17 24 24 25 25 27 27 22 21 22 20 20 20 20 20 16 13 13 12 11 14 Device 13 | . 11 14 11 22 22 22 9 13 14 14 14 14 13 17 12 6 5 7 10 10 8 10 14 15 14 8 12 11 17 14 12 11 13 Storage 6 | . 14 14 11 11 11 11 9 7 7 7 7 7 6 6 6 6 6 5 5 5 5 5 5 5 5 5 5 4 4 4 4 4 3 Processor 14 | . . . . . . . 2 7 7 7 7 7 9 18 23 31 31 27 27 27 22 16 15 15 15 15 15 13 13 18 20 30 24 Protection 4 | . . . 7 . . . 8 8 7 7 7 7 6 . . . . 1 . . 2 5 5 5 5 10 7 14 9 5 4 . . Energy Gun 3 | . 25 27 21 2 5 11 . . . . . . 2 . . . 3 3 2 . 2 8 2 2 1 1 1 6 3 1 . 2 . Ballistic Gun 11 | . 2 . . 9 1 . 2 22 22 21 20 20 12 17 17 16 13 11 13 15 13 4 11 12 12 10 11 6 9 11 12 6 . Ballistic Cannon 1 | . . . . . 12 2 14 . . . . . . . . . . . . . . 2 . . . . . . . . . . . Naked Turns . | . . . . . . . . . . . . . . . . . . . . . . . . . . . . . . . . . . Heaviest Build 189 | 10 16 16 58 59 67 60 71 76 75 81 91 94 157 133 129 110 117 116 124 128 162 165 166 175 175 182 182 179 175 168 162 177 189 Greatest Support 300 | 40 40 40 60 60 60 60 89 88 88 86 88 88 112 114 116 116 116 146 146 158 158 158 195 195 202 202 202 225 200 225 210 225 300 Greatest Overweight (x) 5 | . . . . . 1 . . . . . 1 2 5 1 1 . 1 . . . 1 1 1 1 . . 1 . . . . . . Average Overweight (x) . | . . . . . . . . . . . . . 2 1 . . . . . . . . . . . . . . . . . . . Largest Inventory Capacity 25 | 8 8 8 20 20 20 20 20 20 20 20 20 20 25 25 25 25 25 25 25 25 25 25 25 25 25 25 25 25 25 25 25 25 25 Average Capacity 22 | 8 8 8 18 20 20 20 20 20 20 20 20 20 23 25 25 25 25 25 25 25 25 25 25 25 25 25 25 25 25 25 25 25 24 Most Carried 25 | 6 8 8 20 20 20 19 20 20 20 20 20 20 25 25 25 25 25 25 25 25 25 25 25 25 25 25 25 25 25 25 24 25 25 Average Carried 22 | 6 7 8 16 19 18 18 19 19 19 19 19 19 22 24 24 25 25 24 24 24 24 24 24 24 24 24 24 24 24 24 24 23 21 Final Capacity 25 | 8 8 8 20 20 20 20 20 20 20 20 20 20 25 25 25 25 25 25 25 25 25 25 25 25 25 25 25 25 25 25 25 25 5 Final Carried 25 | 6 8 8 20 19 19 18 20 20 20 20 20 20 24 25 25 25 25 25 25 25 25 25 25 25 25 25 25 25 24 24 24 24 5 Class Distribution -------------------- 26% | Trapper-Gunner 21% | Trapper-Mutant 19% | Trapper-Tank 13% | Scavenger-Mutant 8% | Trapper-Skirmisher 5% | Skirmisher 5% | Mutant Dominant Class ---------------- Mutant | -10/Materials Mutant | -10/Mines Scavenger-Mutant | -9/Materials Scavenger-Mutant | -9/Mines Scavenger-Mutant | -9/Exiles Scavenger-Mutant | -8/Mines Scavenger-Mutant | -8/Materials Skirmisher | -7/Factory Skirmisher | -7/Lower Caves Skirmisher | -7/Lower Caves Trapper-Mutant | -7/Zion Trapper-Skirmisher | -6/Proximity Caves Trapper-Tank | -6/Factory Trapper-Gunner | -6/Lower Caves Trapper-Gunner | -6/Lower Caves Trapper-Gunner | -6/Data Miner Trapper-Gunner | -5/Proximity Caves Trapper-Gunner | -5/Factory Trapper-Gunner | -5/Upper Caves Trapper-Gunner | -5/Upper Caves Trapper-Gunner | -5/Warlord Trapper-Tank | -4/Proximity Caves Trapper-Tank | -4/Factory Trapper-Mutant | -4/Upper Caves Trapper-Tank | -4/Upper Caves Trapper-Mutant | -4/Zhirov Trapper-Tank | -3/Proximity Caves Trapper-Tank | -3/Research Trapper-Tank | -3/Garrison Trapper-Gunner | -3/Research Trapper-Gunner | -2/Research Trapper-Mutant | -2/DSF Trapper-Mutant | -1/Access Resources | -11 -10 -10 -9 -9 -9 -8 -8 -7 -7 -7 -7 -6 -6 -6 -6 -6 -5 -5 -5 -5 -5 -4 -4 -4 -4 -4 -3 -3 -3 -3 -2 -2 -1 ----------- Run | Scr Mat Min Mat Min Exi Min Mat Fac Low Low Zio Pro Fac Low Low Dat Pro Fac Upp Upp War Pro Fac Upp Upp Zhi Pro Res Gar Res Res DSF Acc Matter Collected 18344 | 194 142 91 220 72 866 . 1103 915 358 396 212 550 2756 376 588 . 145 113 460 361 119 808 457 536 532 50 1244 661 141 2205 . 359 1314 Remotely 2834 | . . . . . . . . . . . . . 443 . . . . . . . . 201 108 . . . 103 58 . 812 . . 1109 Salvage Created 25358 | . 333 281 1221 167 373 49 1253 661 44 176 . 653 3558 325 688 . 18 94 462 470 545 1230 720 398 657 235 911 851 141 2780 . 716 5348 Parts 1210 | . 15 13 53 17 35 . 80 40 6 10 . 24 197 9 22 . 1 7 26 26 20 31 32 14 19 6 28 54 2 163 . 38 222 Haulers Intercepted 23 | . 1 . 6 . . . 6 2 . . . . 3 . . . . . . 1 . . . . . . . 1 . 1 . . 2 Recyclers Shooed 24 | . . . . . . . 4 . . . . . 13 . . . . . . . . . 1 . . . . 3 . 3 . . . Parts Field Recycled 14 | . . . . . . . . . . . . . . 8 . . . . . . 6 . . . . . . . . . . . . Retrieved Matter 330 | . . . . . . . . . . . . . . 124 . . . . . . 206 . . . . . . . . . . . . Parts Self-Destructed 161 | . . . . . . . . . 6 5 . 20 . 5 6 . 6 . 8 27 . 22 . 6 21 4 25 . . . . . . Prevented 49 | . . . . . . . . . . 5 . 16 . . 6 . . . 3 8 . 5 . 1 . . 5 . . . . . . Kills | -11 -10 -10 -9 -9 -9 -8 -8 -7 -7 -7 -7 -6 -6 -6 -6 -6 -5 -5 -5 -5 -5 -4 -4 -4 -4 -4 -3 -3 -3 -3 -2 -2 -1 ------- Run | Scr Mat Min Mat Min Exi Min Mat Fac Low Low Zio Pro Fac Low Low Dat Pro Fac Upp Upp War Pro Fac Upp Upp Zhi Pro Res Gar Res Res DSF Acc Combat Hostiles Destroyed 418 | . 6 10 17 10 4 1 30 14 3 5 . 15 45 5 5 . 4 1 4 8 7 31 13 2 9 . 18 14 3 37 . 8 89 Melee 1 | . . . . . . . . . . . . . . . . . . . . . . . . . 1 . . . . . . . . Guns 167 | . 6 4 15 4 . 1 1 8 1 1 . 8 27 2 5 . . 1 1 3 3 9 10 2 6 . 10 8 2 24 . 5 . Cannons 85 | . . . . 2 2 . 25 . . . . . 6 . . . . . . . . 3 . . . . . . . . . 2 45 AOE 149 | . . 6 1 4 2 . 4 6 2 4 . 7 12 3 . . 4 . 3 5 4 18 3 . 1 . 7 5 1 13 . . 34 Classes Destroyed 29 | . 2 2 4 2 3 1 1 2 . 2 . . 3 1 1 . . . . . 2 1 . . 1 . . . . 1 . . . Worker 24 | . . . 1 . . . . 3 . . . . 11 . . . . . . . . . . . . . . . . 3 . . 6 Builder 30 | . . . . . . . . 1 . . . . 11 . . . . . . . . . 1 . . . . 2 . 5 . . 10 Tunneler 4 | . . . . . . . 1 1 . . . . 1 . . . . . . . . . . . . . . . . . . . 1 Hauler 23 | . 1 . 6 . . . 6 2 . . . . 3 . . . . . . 1 . . . . . . . 1 . 1 . . 2 Recycler 18 | . . 1 . . . . 3 1 . . . . 8 . . . . . . . . 1 . . . . . . . 4 . . . Minesweeper 2 | . . . . . . . . . . 1 . . . . . . . . . . . . . 1 . . . . . . . . . Mechanic 4 | . . . . 1 . . 1 . . . . . 1 . . . . . . . . . . . . . . . . . . . 1 Operator 1 | . . . . . . . . . . . . . . . . . . . . . . . . . . . . . . 1 . . . Turret 1 | . . . . . 1 . . . . . . . . . . . . . . . . . . . . . . . . . . . . Watcher 13 | . . . 1 . . . 3 . . . . . 3 . . . . 1 . . . 2 . . . . . . . . . . 3 Swarmer 89 | . . 6 . 4 . . 7 4 3 4 . 5 10 4 . . 4 . . 5 1 11 4 . . . . 5 . 12 . . . Saboteur 2 | . . . . . . . . . . . . . . . . . . . . . . . . . 1 . . . . . . . 1 Grunt 137 | . 6 4 10 4 . . 13 5 . 1 . 9 14 1 5 . . . 4 2 . 7 4 2 3 . 2 . . 7 . . 34 Brawler 17 | . . . 2 . . . 1 . . . . . 2 . . . . . . . 1 3 1 . . . . . . . . . 7 Duelist 13 | . . . . . . . . . . . . . 2 . . . . . . . . 3 1 . . . . . 2 . . . 5 Protector 7 | . . . . . . . . . . . . . . . . . . . . . 1 . 1 . . . 1 . . . . . 4 Researcher 1 | . . . . . . . . . . 1 . . . . . . . . . . . . . . . . . . . . . . . Sentry 34 | . . . 5 . . . 8 1 . . . 1 3 . . . . . . 1 . 5 1 . 2 . 1 . 1 3 . . 2 Demolisher 6 | . . . . 2 . . . . . . . . . . . . . . . . . . . . . . 4 . . . . . . Specialist 9 | . . . . . . . . . . . . . 4 . . . . . . . . . . . . . . . . . . 5 . Hunter 33 | . . . . . . 1 1 1 . . . . 3 . . . . . . . 1 2 1 . 2 . 4 2 . 2 . 2 11 Programmer 57 | . . . . . . . . 3 . . . . 5 . . . . 1 . . 2 . . . . . . 7 . 13 . 1 25 Heavy 2 | . . . . . . . . . . . . . 2 . . . . . . . . . . . . . . . . . . . . Behemoth 3 | . . . . . . . . . . . . . . . . . . . . . . 1 . . 1 . . . . 1 . . . Enhanced Grunt 1 | . . . . . . . . . . . . . . . . . . . . . 1 . . . . . . . . . . . . Striker 2 | . . . . . . . . . . . . . . . . . . . . . 2 . . . . . . . . . . . . Zionite 8 | . . . . . 8 . . . . . . . . . . . . . . . . . . . . . . . . . . . . Decomposer 3 | . . . . . . . . . . . . . . . . . . . 1 2 . . . . . . . . . . . . . Packrat 7 | . . . . . . . . . . . . . . 3 2 . . . . . . . . 1 1 . . . . . . . . Samaritan 8 | . . . . . . . . . . . . . . . 3 . . . 2 . . . . 2 1 . . . . . . . . Assembled 3 | . . . . . 3 . . . . . . . . . . . . . . . . . . . . . . . . . . . . Thug 7 | . . . . . . . . . . . . . . . . . . . . . 2 . . . . . 5 . . . . . . Savage 1 | . . . . . . . . . . . . . . . . . . . 1 . . . . . . . . . . . . . . Martyr 1 | . . . . . . . . . . . . . . . . . . . . . . . . . 1 . . . . . . . . Mutant 4 | . . . . . . . . . . . . . . 1 1 . . . 1 . . . . . . . 1 . . . . . . Best Kill Streak 19 | . 2 4 5 5 4 1 6 5 3 4 . 4 11 4 3 . 4 2 4 5 7 7 5 2 3 . 5 5 3 19 . 3 18 Combat Bots Only 16 | . 2 3 4 4 2 1 5 4 3 4 . 4 8 4 3 . 4 1 4 5 7 7 4 2 3 . 5 5 3 12 . 3 16 Max Kills in Single Turn 7 | . 1 2 2 2 1 1 3 2 2 4 . 2 6 3 1 . 2 1 2 5 7 4 4 1 2 . 2 3 1 3 . 1 4 Gunslinging 1 | . . . . . . . . . . . . . . . . . . . . . 1 . . . 1 . . . . . . . . Exploded 5 | . . 2 1 2 1 . 2 2 2 4 . 2 3 3 . . 2 . 2 5 2 4 3 . 1 . 2 3 1 2 . . 4 Melee 1 | . . . . . . . . . . . . . . . . . . . . . . . . . 1 . . . . . . . . Uniques/NPCs Destroyed 4 | . . . . . 4 . . . . . . . . . . . . . . . . . . . . . . . . . . . . 8R-AWN (-9/Exiles) EX-DEC (-9/Exiles) EX-HEX (-9/Exiles) EX-BIN (-9/Exiles) Combat | -11 -10 -10 -9 -9 -9 -8 -8 -7 -7 -7 -7 -6 -6 -6 -6 -6 -5 -5 -5 -5 -5 -4 -4 -4 -4 -4 -3 -3 -3 -3 -2 -2 -1 -------- Run | Scr Mat Min Mat Min Exi Min Mat Fac Low Low Zio Pro Fac Low Low Dat Pro Fac Upp Upp War Pro Fac Upp Upp Zhi Pro Res Gar Res Res DSF Acc Damage Taken 33077 | . 427 213 649 150 726 103 853 643 55 3 . 502 4423 818 637 . 79 . 213 398 262 2016 525 . 692 . 1227 1101 733 3434 . 2596 9599 Core 3031 | . 117 88 85 28 34 . 83 36 25 . . 42 298 39 102 . 12 . . . 35 209 24 . 44 . 11 55 . 260 . 134 1270 Absorbed by Shields 4736 | . . . . 60 249 40 189 . . 6 . 222 508 . . . . . . . 61 . 194 . 518 . 1087 522 229 851 . . . Reduced by Siege Mode 1922 | . . . . . . . . . . . . . . . . . . . . . . . 29 . . . 107 25 117 247 . 69 1328 Redirected to Shielding 302 | . . . . . . . . . . . . . . . . . . . . . . . . . . . . 113 15 139 . . 35 Regen/Repaired (Parts) 1376 | . 97 . 259 . . . 140 . . . 311 . 294 . . . . 129 50 96 . . . . . . . . . . . . . Core Remaining (%) 68 | 100 . 18 . . . 63 84 . . . . 85 . . . . 46 . . . . 75 . . . . 93 . . 75 . 90 20 Volleys Fired 1389 | . 34 18 60 14 132 5 85 37 3 18 4 26 146 19 31 . 7 8 31 26 7 73 28 39 48 12 99 76 11 96 . 32 164 Largest 3 | . 2 2 2 2 2 2 2 3 3 3 1 3 3 3 3 . 3 3 3 3 3 3 3 3 3 1 3 3 3 3 . 3 3 Hottest 360 | . 90 90 90 101 114 143 143 84 84 85 28 85 198 99 88 . 73 126 126 78 153 150 154 99 99 73 255 203 153 153 . 240 360 Shots Fired 2826 | . 68 32 120 25 169 10 164 97 7 44 4 56 377 49 81 . 13 17 55 50 21 127 74 49 90 12 192 152 25 255 . 69 322 Gun 2065 | . 68 28 120 11 79 5 4 90 6 39 4 45 343 44 77 . 9 16 53 49 21 84 73 49 88 12 179 150 22 244 . 53 . Cannon 606 | . . . . 11 74 5 157 . . 4 . 2 23 . 4 . . . . . . 36 . . . . . . . . . 16 274 Launcher 154 | . . 4 . 3 16 . 3 7 1 1 . 9 11 5 . . 4 . 2 1 . 7 1 . 2 . 13 2 3 11 . . 48 Special 1 | . . . . . . . . . . . . . . . . . . 1 . . . . . . . . . . . . . . . Kinetic 1593 | . 6 . 10 11 74 . 156 90 6 39 4 45 275 44 77 . 9 10 35 38 13 64 68 15 63 . 103 53 14 236 . 35 . Thermal 726 | . 62 28 14 11 79 10 5 . . 4 . 2 91 . 4 . . 5 1 . . 2 4 . . . 37 65 8 7 . 16 271 Explosive 154 | . . 4 . 3 16 . 3 7 1 1 . 9 11 5 . . 4 . 2 1 . 7 1 . 2 . 13 2 3 11 . . 48 Electromagnetic 231 | . . . 96 . . . . . . . . . . . . . . 2 17 11 . 7 . 26 24 . 36 . . . . 9 3 Entropic 55 | . . . . . . . . . . . . . . . . . . . . . 8 47 . . . . . . . . . . . Phasic 67 | . . . . . . . . . . . . . . . . . . . . . . . 1 8 1 12 3 32 . 1 . 9 . Robot Hit Streak 42 | . 20 10 20 8 23 7 21 15 2 8 . 8 25 10 11 . 10 11 27 25 5 14 16 10 13 25 41 21 20 33 . 13 42 Robot Miss Streak 8 | . 3 1 3 2 3 1 4 2 5 2 . 2 3 2 2 . . 1 2 5 8 6 2 2 3 . 4 4 1 2 . 1 2 Penetration Max 2 | . . . . . . . . 1 . . . 1 1 1 . . . . . 2 1 . 1 1 1 . . 1 . 2 . . . Secondary Targets 25 | . . 2 1 . . . . . . . . 3 2 . 1 . . . . 1 2 2 . . 2 . 1 3 1 3 . 1 . Max Gunslinging Chain 1 | . . 1 1 . . . . . . . . 1 1 . 1 . . . . 1 1 1 . . 1 . 1 1 1 1 . 1 . Shots Hit Robots 2012 | . 51 22 83 13 113 8 108 72 2 27 2 31 267 32 56 1 10 14 48 34 11 80 49 31 70 15 145 90 26 200 . 55 246 Core Hits 1157 | . 19 15 35 14 42 2 59 34 5 10 . 33 152 16 27 . 6 6 20 20 27 64 26 14 29 3 83 37 15 99 . 15 230 Critical Kills 37 | . . . . . . . . . . . . . 6 1 . . . . . 3 1 1 1 . . . . . . 13 . 2 9 Critical Parts Destroyed 48 | . . . . . . . . . . 1 . 1 7 1 2 . . . 1 1 4 8 1 1 1 . 1 1 1 15 . 1 . Critical Strikes 137 | . . 1 1 . 6 . 7 . . 1 . 1 26 2 2 . . . 3 4 6 12 2 1 1 2 3 8 2 33 . 4 9 Burn 29 | . . 1 . . 4 . . . . . . . 11 . . . . . . . . . . . . . 2 7 1 3 . . . Meltdown 9 | . . . . . . . . . . . . . . . . . . . . . . . . . . . . . . . . . 9 Destroy 71 | . . . . . . . . . . 1 . 1 12 2 2 . . . 3 4 4 2 2 1 1 . 1 1 1 30 . 3 . Blast 14 | . . . . . 2 . 7 . . . . . 2 . . . . . . . . 3 . . . . . . . . . . . Corrupt 2 | . . . 1 . . . . . . . . . . . . . . . . . . . . . . . . . . . . 1 . Smash 1 | . . . . . . . . . . . . . 1 . . . . . . . . . . . . . . . . . . . . Detonate 9 | . . . . . . . . . . . . . . . . . . . . . 2 7 . . . . . . . . . . . Intensify 2 | . . . . . . . . . . . . . . . . . . . . . . . . . . 2 . . . . . . . Melee Attacks 72 | . . . . . 4 . 1 2 7 3 2 . 16 . 2 1 1 2 . . 4 . 2 . 5 3 8 3 6 . . . . Impact 35 | . . . . . . . 1 2 7 3 . . 15 . 2 . . 1 . . 4 . . . . . . . . . . . . Slashing . | . . . . . . . . . . . . . . . . . . . . . . . . . . . . . . . . . . Piercing . | . . . . . . . . . . . . . . . . . . . . . . . . . . . . . . . . . . Sneak Attacks 30 | . . . . . 4 . . . . . 2 . 3 . . 1 1 . . . . . 2 . 5 3 . 3 6 . . . . Combat Hostiles . | . . . . . . . . . . . . . . . . . . . . . . . . . . . . . . . . . . Follow-up Attacks . | . . . . . . . . . . . . . . . . . . . . . . . . . . . . . . . . . . Damage Inflicted 77206 | . 563 599 1412 696 2681 164 3181 2530 168 739 . 1568 8998 1156 1086 . 701 265 1197 1004 1169 5559 1727 689 1852 474 4145 2967 824 6861 . 1619 20612 Guns 33276 | . 559 241 1254 171 1171 104 51 1605 33 485 . 673 5371 755 1086 . 188 253 738 568 431 2551 1321 584 1561 474 2580 2490 444 4513 . 1021 . Cannons 15547 | . . . . 132 1064 60 2431 . . . . . 777 . . . . . . . . 580 . . . . . . . . . 587 9916 Explosions 27514 | . . 351 97 327 446 . 599 840 135 245 . 895 2663 401 . . 513 . 459 436 738 2427 406 73 291 . 1565 364 380 2212 . . 10651 Melee 178 | . . . . . . . . . . . . . 178 . . . . . . . . . . . . . . . . . . . . Ramming 679 | . 4 7 61 66 . . 100 85 . 9 . . 9 . . . . . . . . 1 . 32 . . . 113 . 136 . 11 45 Kinetic 26907 | . 38 . 82 171 1064 . 2391 1605 33 485 . 673 4761 755 1086 . 188 171 481 451 111 1025 1195 320 1262 . 1768 1374 318 4423 . 676 . Thermal 18244 | . 521 241 243 132 1171 164 91 . . . . . 1387 . . . . 83 22 . 738 912 240 23 . . 529 1116 126 90 . 587 9828 Explosive 25498 | . . 351 . 327 446 . 599 840 135 245 . 895 2663 401 . . 513 . 459 436 . 1516 292 . 251 . 1522 364 380 2212 . . 10651 Electromagnetic 2759 | . . . 1026 . . . . . . . . . . . . . . 11 235 117 . 110 . 314 339 . 326 . . . . 193 88 Impact 178 | . . . . . . . . . . . . . 178 . . . . . . . . . . . . . . . . . . . . Slashing . | . . . . . . . . . . . . . . . . . . . . . . . . . . . . . . . . . . Piercing . | . . . . . . . . . . . . . . . . . . . . . . . . . . . . . . . . . . Entropic 2315 | . . . . . . . . . . . . . . . . . . . . . 320 1995 . . . . . . . . . . . Phasic 626 | . . . . . . . . . . . . . . . . . . . . . . . . . . 474 . . . . . 152 . Highest Corruption 12 | . . . . . . . 4 2 2 . . 1 4 . . . . . . . 1 . . . . . . 12 5 5 . 1 11 Average Corruption 4 | . . . . . . . 3 1 1 . . 1 2 . . . . . . . 1 . . . . . . 2 5 5 . 1 4 Corruption Purged 20 | . . . . . . . 4 . 2 . . . 4 . . . . . . . 1 . . . . . . 9 . . . . . Corruption Blocked 53 | . . . . . . . . . . . . . . . . . . . . . . . . . . . . 22 . 9 . 11 11 Effects 153 | . . . . . . . . 3 1 . . . 3 . . . . . . . . . . . . . . 25 6 50 . . 65 Message Errors 44 | . . . . . . . . 1 . . . . . . . . . . . . . . . . . . . 9 1 12 . . 21 Matter Fused 41 | . . . . . . . . 1 . . . . 3 . . . . . . . . . . . . . . 5 3 12 . . 17 Heat Flow Errors 12 | . . . . . . . . . 1 . . . . . . . . . . . . . . . . . . 1 . 4 . . 6 Energy Discharges 15 | . . . . . . . . . . . . . . . . . . . . . . . . . . . . 4 1 6 . . 4 Parts Rejected 2 | . . . . . . . . . . . . . . . . . . . . . . . . . . . . 1 . 1 . . . Data Loss (minor) 17 | . . . . . . . . 1 . . . . . . . . . . . . . . . . . . . 3 1 5 . . 7 Data Loss (major) 7 | . . . . . . . . . . . . . . . . . . . . . . . . . . . . . . 4 . . 3 Misfires 8 | . . . . . . . . . . . . . . . . . . . . . . . . . . . . 1 . 5 . . 2 Alerts 4 | . . . . . . . . . . . . . . . . . . . . . . . . . . . . . . 1 . . 3 Weapon Failures 3 | . . . . . . . . . . . . . . . . . . . . . . . . . . . . 1 . . . . 2 Overload Shots . | . . . . . . . . . . . . . . . . . . . . . . . . . . . . . . . . . . Overflow Damage 1707 | . . 21 . 2 . . 28 59 5 1 . 18 391 55 . . 28 . . 47 18 212 . 15 . . 11 2 11 139 . . 644 Projectiles 518 | . . . . 2 . . 24 . . . . . 58 . . . . . . . . 21 . . . . . . . . . . 413 Explosions 961 | . . 21 . . . . 1 59 5 . . 18 175 55 . . 28 . . 47 18 191 . 6 . . 11 . 11 84 . . 231 Melee 228 | . . . . . . . 3 . . 1 . . 158 . . . . . . . . . . 9 . . . 2 . 55 . . . Knockbacks 53 | . . 1 . . 11 . 28 . . . . . 6 . . . . . . . . 4 . . . . . 2 . 1 . . . Impact 8 | . . 1 . . . . 1 . . . . . 2 . . . . . . . . 1 . . . . . 2 . 1 . . . Kinetic 40 | . . . . . 11 . 22 . . . . . 4 . . . . . . . . 3 . . . . . . . . . . . Secondary 5 | . . . . . . . 5 . . . . . . . . . . . . . . . . . . . . . . . . . . Self-Inflicted Damage 875 | . . . . . 10 . 41 . . . . . 212 28 . . . . 22 . 85 98 189 . . . . . 134 . . . 56 Shots 24 | . . . . . 1 . 1 . . . . . 4 2 . . . . 1 . 2 2 4 . . . . . 3 . . . 4 Rammed 49 | . 3 2 7 5 . . 7 7 . 1 . . 2 . . . . . . . . 1 . 2 . . . 6 . 2 . 1 3 Targets Rammed 59 | . 3 3 8 5 . . 11 9 . 1 . . 2 . . . . . . . . 1 . 2 . . . 6 . 4 . 1 3 Kicked . | . . . . . . . . . . . . . . . . . . . . . . . . . . . . . . . . . . Crushed 10 | . . 1 1 . . . 4 2 . . . . . . . . . . . . . . . . . . . . . 2 . . . Highest Temperature 426 | . 92 48 26 . 330 120 135 6 147 16 . 6 312 . . . . 16 . 11 90 167 24 . 9 . 322 311 84 204 . 42 426 Average Temperature 78 | . 28 30 6 . 56 61 29 6 87 9 . 5 73 . . . . 10 . 11 39 54 12 . 4 . 111 122 36 67 . 19 116 Received Heat Transfer 4296 | . 249 141 303 . . . 276 81 . . . 223 568 72 252 . . . 54 153 . 391 67 . 154 . 132 4 57 273 . . 846 Effects 8 | . . . . . . . . . . . . . 1 . . . . . . . . . . . . . . . . . . . 7 Energy Bleed 2 | . . . . . . . . . . . . . 1 . . . . . . . . . . . . . . . . . . . 1 Interference 5 | . . . . . . . . . . . . . . . . . . . . . . . . . . . . . . . . . 5 Matter Decay 1 | . . . . . . . . . . . . . . . . . . . . . . . . . . . . . . . . . 1 Siege Activations 28 | . . . . . . . . . . . . . . . . . . . . . . . 1 2 1 . 9 2 1 4 . 1 7 Total Turns 3870 | . . . . . . . . . . . . . . . . . . . . . . . 44 29 13 . 342 43 39 230 . 8 3122 Longest Duration 1672 | . . . . . . . . . . . . . . . . . . . . . . . 44 18 13 . 97 33 39 176 . 8 1672 Robots Corrupted 9 | . . . 1 . . . . . . . . . . . . . . . 2 1 . 1 . 2 . . 1 . . . . 1 . Combat Hostiles 3 | . . . 1 . . . . . . . . . . . . . . . . . . . . . . . 1 . . . . 1 . Parts Fried 50 | . . . 9 . . . 3 1 . . . . 4 . . . . . 13 2 . 2 . 7 2 . 3 1 . 1 . 2 . Impact Corruptions 15 | . . . . . . . 2 . . 1 . . 6 . . . . . . . . . . 1 . . . 1 . 4 . . . Robots Melted 13 | . . . . . . . . . . . . . . . . . . . . . . 1 . . . . . 1 . . . . 11 Combat Hostiles 12 | . . . . . . . . . . . . . . . . . . . . . . 1 . . . . . 1 . . . . 10 Parts Melted 93 | . 3 3 . . 11 3 . . . . . 1 7 . . . . . . . 1 . 5 . 4 . . 14 3 2 . 1 35 Heat Transferred 25300 | . 1224 707 545 222 2368 296 148 . . . . . 4748 . . . . 191 37 . 700 450 198 50 . . 801 3425 450 550 . 518 7672 Parts Sabotaged 8 | . . . . . . . . . . . . 3 . . . . . . . . . . . . 1 . . . . . . . 4 Parts Stolen . | . . . . . . . . . . . . . . . . . . . . . . . . . . . . . . . . . . Parts Stripped . | . . . . . . . . . . . . . . . . . . . . . . . . . . . . . . . . . . Power Chain Reactions 7 | . . . 2 . . . . . . . . . . . . . . . . . . 1 . 2 1 . 1 . . . . . . Missiles Intercepted . | . . . . . . . . . . . . . . . . . . . . . . . . . . . . . . . . . . Alert | -11 -10 -10 -9 -9 -9 -8 -8 -7 -7 -7 -7 -6 -6 -6 -6 -6 -5 -5 -5 -5 -5 -4 -4 -4 -4 -4 -3 -3 -3 -3 -2 -2 -1 ------- Run | Scr Mat Min Mat Min Exi Min Mat Fac Low Low Zio Pro Fac Low Low Dat Pro Fac Upp Upp War Pro Fac Upp Upp Zhi Pro Res Gar Res Res DSF Acc Peak Influence 2535 | . 153 280 435 157 . 35 515 429 . . . . 1280 . . . . 73 . . . . 688 . . . . 598 551 1020 573 688 2535 Initial 573 | . . 51 44 34 . . 13 206 . . . . 18 . . . . . . . . . 59 . . . . 31 420 309 573 433 412 Average 490 | . 82 167 161 33 . 10 291 297 . . . . 514 . . . . 10 . . . . 418 . . . . 225 488 601 573 535 1283 Maximum Alert Level 5 | . . 1 2 . . . 2 2 . . . . 4 . . . . . . . . . 2 . . . . 2 2 3 2 2 5 Low Security (%) 39 | 100 100 58 79 100 . 100 43 16 . . . . 45 . . . . 100 . . . . 16 . . . . 58 . . . . . Level 1 14 | . . 41 10 . . . 16 68 . . . . 9 . . . . . . . . . 30 . . . . 9 . 29 . . . Level 2 20 | . . . 9 . . . 40 14 . . . . 1 . . . . . . . . . 53 . . . . 32 100 25 100 100 17 Level 3 8 | . . . . . . . . . . . . . 24 . . . . . . . . . . . . . . . . 44 . . 5 Level 4 11 | . . . . . . . . . . . . . 19 . . . . . . . . . . . . . . . . . . . 49 Level 5 3 | . . . . . . . . . . . . . . . . . . . . . . . . . . . . . . . . . 19 High Security 1 | . . . . . . . . . . . . . . . . . . . . . . . . . . . . . . . . . 7 Max Security . | . . . . . . . . . . . . . . . . . . . . . . . . . . . . . . . . . . Squads Dispatched 91 | . 1 . 1 1 . . 4 8 . . . 1 15 . . . . 2 . . . . 4 . 1 . . 5 . 10 1 4 33 Investigation 12 | . . . . . . . 3 3 . . . . 2 . . . . . . . . . 1 . . . . . . 1 1 . 1 Extermination 26 | . . . . . . . . 2 . . . . 5 . . . . 1 . . . . 1 . . . . 5 . 4 . . 8 Reinforcement 24 | . 1 . 1 . . . 1 3 . . . . 6 . . . . . . . . . . . . . . . . 3 . 4 5 Assault 28 | . . . . 1 . . . . . . . 1 2 . . . . . . . . . 2 . 1 . . . . 2 . . 19 Garrison 1 | . . . . . . . . . . . . . . . . . . 1 . . . . . . . . . . . . . . . Intercept . | . . . . . . . . . . . . . . . . . . . . . . . . . . . . . . . . . . Searches Triggered . | . . . . . . . . . . . . . . . . . . . . . . . . . . . . . . . . . . Data Miner Redirects 11 | . . . . . . . . . . . . . . . . . . . . . . . 1 . . . . . . 3 . . 7 Construction Impeded 5 | . . . . . . . . . . . . . 1 . . . . . . . . . . . . . . . . . . . 4 Haulers Reinforced 5 | . . . . . . . . 1 . . . . 1 . . . . . . . . . . . . . . . . 3 . . . Active Scanning Responses . | . . . . . . . . . . . . . . . . . . . . . . . . . . . . . . . . . . Cargo Convoy Interrupts 1 | . . . . . . . . 1 . . . . . . . . . . . . . . . . . . . . . . . . . Stealth | -11 -10 -10 -9 -9 -9 -8 -8 -7 -7 -7 -7 -6 -6 -6 -6 -6 -5 -5 -5 -5 -5 -4 -4 -4 -4 -4 -3 -3 -3 -3 -2 -2 -1 --------- Run | Scr Mat Min Mat Min Exi Min Mat Fac Low Low Zio Pro Fac Low Low Dat Pro Fac Upp Upp War Pro Fac Upp Upp Zhi Pro Res Gar Res Res DSF Acc Distress Signals 59 | . 2 . 1 . . . 1 3 . . . . . . . . . 1 . . 1 1 . . . . 37 5 . 2 . . 5 Communications Jammed 272 | . . . . . . . . . . . . . . . . . . . . . . . 19 . . . . 188 . 43 . . 22 Distress Signals 272 | . . . . . . . . . . . . . . . . . . . . . . . 19 . . . . 188 . 43 . . 22 Times Spotted 682 | . 20 11 36 11 41 2 57 22 3 4 . 19 66 9 14 . 6 5 5 9 22 28 18 1 15 . 29 35 3 50 . 11 130 Peak Tracking Total 22 | . 4 3 7 4 9 2 4 4 3 . . 5 6 4 4 . 3 1 5 5 12 7 6 1 9 . 6 4 3 7 . 2 22 Tactical Retreats 38 | . 1 . . . 11 . 4 2 . . . 3 2 . 3 . . . . . 1 1 1 . 2 . . . . . . 4 3 Traps | -11 -10 -10 -9 -9 -9 -8 -8 -7 -7 -7 -7 -6 -6 -6 -6 -6 -5 -5 -5 -5 -5 -4 -4 -4 -4 -4 -3 -3 -3 -3 -2 -2 -1 ------- Run | Scr Mat Min Mat Min Exi Min Mat Fac Low Low Zio Pro Fac Low Low Dat Pro Fac Upp Upp War Pro Fac Upp Upp Zhi Pro Res Gar Res Res DSF Acc Traps Triggered 15 | . . . . . . . 4 1 . . . . . . . . . . . . . 1 . . . . . 2 3 1 . 2 1 Indirectly 1 | . . . . . . . . . . . . . . . . . . . . . . 1 . . . . . . . . . . . Trap Hack Attempts 385 | . . . . . . . 64 36 . . . . 148 . . . . . . . . . 69 . . . . 37 . . . . 31 Triggered 1 | . . . . . . . . . . . . . 1 . . . . . . . . . . . . . . . . . . . . Disarmed 2 | . . . . . . . . . . . . . 2 . . . . . . . . . . . . . . . . . . . . Reprogrammed 38 | . . . . . . . 4 4 . . . . 17 . . . . . . . . . 5 . . . . 4 . . . . 4 Reused 31 | . . . . . . . 1 2 . . . 1 10 2 3 . . . . 3 . 6 . . 3 . . . . . . . . Traps Extracted 53 | . . . . . . . 3 5 . . . . 19 5 4 . 2 . 1 . 3 2 5 . . . . 4 . . . . . Installed 42 | . . . . . . . . 3 . . . 1 12 3 5 . 2 . . 3 . 9 . . 3 . . . . . . . 1 Triggered 46 | . . . . . . . 1 4 . 4 . 1 10 2 6 . . . . 2 6 6 . 1 3 . . . . . . . . Most Traps Carried 23 | . . . . . . . 3 7 5 13 13 13 19 23 21 20 20 20 21 21 21 21 19 21 21 18 18 19 19 19 . 19 19 Exploded 3 | . . . . . 3 . . . . . . . . . . . . . . . . . . . . . . . . . . . . Machines | -11 -10 -10 -9 -9 -9 -8 -8 -7 -7 -7 -7 -6 -6 -6 -6 -6 -5 -5 -5 -5 -5 -4 -4 -4 -4 -4 -3 -3 -3 -3 -2 -2 -1 ---------- Run | Scr Mat Min Mat Min Exi Min Mat Fac Low Low Zio Pro Fac Low Low Dat Pro Fac Upp Upp War Pro Fac Upp Upp Zhi Pro Res Gar Res Res DSF Acc Machines Disabled 43 | . . . 2 . 10 . 1 2 . . . . 6 . . . . . . . . 3 7 . 1 . 3 3 . 2 . 1 2 Max in Single Turn 5 | . . . 1 . 1 . 1 1 . . . . 1 . . . . . . . . 1 5 . . . 1 1 . 1 . 1 1 Garrison Access 4 | . . . . . . . 1 . . . . . 2 . . . . . . . . . 1 . . . . . . . . . . Machines Sabotaged . | . . . . . . . . . . . . . . . . . . . . . . . . . . . . . . . . . . Garrisons Compromised 1 | . . . . . . . . 1 . . . . . . . . . . . . . . . . . . . . . . . . . Overloaded Fab Kills . | . . . . . . . . . . . . . . . . . . . . . . . . . . . . . . . . . . Hacking | -11 -10 -10 -9 -9 -9 -8 -8 -7 -7 -7 -7 -6 -6 -6 -6 -6 -5 -5 -5 -5 -5 -4 -4 -4 -4 -4 -3 -3 -3 -3 -2 -2 -1 --------- Run | Scr Mat Min Mat Min Exi Min Mat Fac Low Low Zio Pro Fac Low Low Dat Pro Fac Upp Upp War Pro Fac Upp Upp Zhi Pro Res Gar Res Res DSF Acc Machines Accessed 74 | . 4 . 9 . 2 . 10 9 . 1 . . 8 1 . 3 . 3 1 1 3 3 1 . . 4 . 3 . 3 1 . 4 Terminals 28 | . 3 . 7 . . . 7 6 . . . . . . . . . . . 1 . 1 . . . . . . . 1 1 . 1 Fabricators 8 | . . . . . . . . 1 . . . . 2 . . . . . . . . 1 1 . . . . . . 1 . . 2 Repair Stations 13 | . 1 . 2 . . . 2 1 . . . . 2 . . . . 2 . . . . . . . . . 2 . 1 . . . Recycling Units 4 | . . . . . . . . 1 . . . . 1 . . . . . . . . 1 . . . . . . . . . . 1 Scanalyzers 2 | . . . . . . . . . . . . . 1 . . . . 1 . . . . . . . . . . . . . . . Garrison Access 4 | . . . . . . . 1 . . . . . 2 . . . . . . . . . . . . . . 1 . . . . . Total Hacks 226 | . 13 . 37 . 2 . 28 21 . 1 . . 25 1 . 26 . 7 1 1 5 8 2 . . 17 . 8 . 10 3 . 10 Successful 139 | . 9 . 21 . 2 . 12 10 . 1 . . 15 1 . 26 . 3 1 1 5 2 . . . 17 . 4 . 5 1 . 3 Failed 86 | . 3 . 16 . . . 16 11 . . . . 10 . . . . 4 . . . 6 2 . . . . 4 . 5 2 . 7 Catastrophic 13 | . . . 2 . . . 2 3 . . . . 3 . . . . . . . . 1 1 . . . . . . . . . 1 Database Lockouts 1 | . 1 . . . . . . . . . . . . . . . . . . . . . . . . . . . . . . . . Manual 128 | . 2 . 21 . 1 . 16 10 . . . . 16 . . . . 10 . . 1 3 11 . . . . 17 . 14 . . 6 Terminals 85 | . 8 . 29 . . . 21 16 . . . . . . . . . . . 1 . 2 . . . . . . . 2 3 . 3 Fabricators 29 | . . . . . . . . 2 . . . . 13 . . . . . . . . 4 2 . . . . . . 3 . . 5 Repair Stations 44 | . 5 . 8 . . . 5 1 . . . . 8 . . . . 5 . . . . . . . . . 7 . 5 . . . Recycling Units 7 | . . . . . . . . 2 . . . . 1 . . . . . . . . 2 . . . . . . . . . . 2 Scanalyzers 3 | . . . . . . . . . . . . . 1 . . . . 2 . . . . . . . . . . . . . . . Garrison Access 5 | . . . . . . . 2 . . . . . 2 . . . . . . . . . . . . . . 1 . . . . . Terminal Hacks 87 | . 6 . 13 . 2 . 5 5 . 1 . . . 1 . 26 . . 1 1 5 1 . . . 17 . . . 1 1 . 1 Record 17 | . . . . . 1 . . . . . . . . . . 6 . . . 1 4 . . . . 5 . . . . . . . Part Schematic 17 | . . . 1 . . . . . . . . . . . . 12 . . . . . . . . . 4 . . . . . . . Robot Schematic 5 | . . . . . . . . . . . . . . . . 5 . . . . . . . . . . . . . . . . . Robot Analysis 9 | . 1 . 2 . . . 2 . . . . . . . . . . . . . . . . . . 4 . . . . . . . Prototype ID Bank 10 | . 1 . 2 . . . . . . . . . . . . 3 . . . . . . . . . 4 . . . . . . . Open Door 6 | . . . . . . . . . . 1 . . . 1 . . . . 1 . 1 1 . . . . . . . . . . 1 Open DSF 2 | . . . . . . . . . . . . . . . . . . . . . . . . . . . . . . 1 1 . . Branch Access Points 2 | . . . 1 . . . . 1 . . . . . . . . . . . . . . . . . . . . . . . . . Terminal Index 1 | . 1 . . . . . . . . . . . . . . . . . . . . . . . . . . . . . . . . Fabricator Index 1 | . . . . . . . . 1 . . . . . . . . . . . . . . . . . . . . . . . . . Unreport Threat 5 | . . . 3 . . . 2 . . . . . . . . . . . . . . . . . . . . . . . . . . Locate Traps 5 | . 3 . . . . . . 2 . . . . . . . . . . . . . . . . . . . . . . . . . Hauler Manifests 2 | . . . 1 . . . 1 . . . . . . . . . . . . . . . . . . . . . . . . . . Registered Components 1 | . . . 1 . . . . . . . . . . . . . . . . . . . . . . . . . . . . . . Zone Layout 3 | . . . 2 . . . . 1 . . . . . . . . . . . . . . . . . . . . . . . . . EX-Prototype ID Bank 1 | . . . . . 1 . . . . . . . . . . . . . . . . . . . . . . . . . . . . Fabricator Hacks 10 | . . . . . . . . 1 . . . . 7 . . . . . . . . . . . . . . . . 1 . . 1 Network Status 5 | . . . . . . . . 1 . . . . 2 . . . . . . . . . . . . . . . . 1 . . 1 Load Schematic 3 | . . . . . . . . . . . . . 3 . . . . . . . . . . . . . . . . . . . . Build 2 | . . . . . . . . . . . . . 2 . . . . . . . . . . . . . . . . . . . . Repair Station Hacks 25 | . 3 . 7 . . . 4 . . . . . 5 . . . . 1 . . . . . . . . . 3 . 2 . . . Scan Component 17 | . 2 . 4 . . . 2 . . . . . 3 . . . . 1 . . . . . . . . . 3 . 2 . . . Repair 8 | . 1 . 3 . . . 2 . . . . . 2 . . . . . . . . . . . . . . . . . . . . Recycling Unit Hacks 1 | . . . . . . . . 1 . . . . . . . . . . . . . . . . . . . . . . . . . Retrieve Components 1 | . . . . . . . . 1 . . . . . . . . . . . . . . . . . . . . . . . . . Scanalyzer 1 | . . . . . . . . . . . . . . . . . . 1 . . . . . . . . . . . . . . . Insert Component 1 | . . . . . . . . . . . . . . . . . . 1 . . . . . . . . . . . . . . . Garrison Access Hacks 3 | . . . . . . . 1 . . . . . 1 . . . . . . . . . . . . . . 1 . . . . . Unlock Access 1 | . . . . . . . . . . . . . . . . . . . . . . . . . . . . 1 . . . . . Seal Access 2 | . . . . . . . 1 . . . . . 1 . . . . . . . . . . . . . . . . . . . . Unauthorized Hacks 12 | . . . 1 . . . 2 3 . . . . 2 . . . . 1 . . . 1 . . . . . . . 1 . . 1 Terminals 4 | . . . 1 . . . 2 1 . . . . . . . . . . . . . . . . . . . . . . . . . Botnet 4 | . . . 1 . . . 2 1 . . . . . . . . . . . . . . . . . . . . . . . . . Fabricators 5 | . . . . . . . . 1 . . . . 1 . . . . . . . . 1 . . . . . . . 1 . . 1 Liberate 4 | . . . . . . . . 1 . . . . 1 . . . . . . . . . . . . . . . . 1 . . 1 Download 1 | . . . . . . . . . . . . . . . . . . . . . . 1 . . . . . . . . . . . Repair Stations 2 | . . . . . . . . 1 . . . . . . . . . 1 . . . . . . . . . . . . . . . Mechanics 2 | . . . . . . . . 1 . . . . . . . . . 1 . . . . . . . . . . . . . . . Recycling Units . | . . . . . . . . . . . . . . . . . . . . . . . . . . . . . . . . . . Scanalyzers . | . . . . . . . . . . . . . . . . . . . . . . . . . . . . . . . . . . Garrison Access 1 | . . . . . . . . . . . . . 1 . . . . . . . . . . . . . . . . . . . . Jam 1 | . . . . . . . . . . . . . 1 . . . . . . . . . . . . . . . . . . . . Data Cores Recovered . | . . . . . . . . . . . . . . . . . . . . . . . . . . . . . . . . . . Used . | . . . . . . . . . . . . . . . . . . . . . . . . . . . . . . . . . . Hacking Detections 49 | . 2 . 7 . . . 10 8 . . . . 6 . . . . 2 . . . 3 1 . . . . 3 . 3 1 . 3 Full Trace Events 9 | . 1 . . . . . 1 2 . . . . 1 . . . . . . . . . 1 . . . . . . 1 1 . 1 Feedback Events . | . . . . . . . . . . . . . . . . . . . . . . . . . . . . . . . . . . Feedback Blocked . | . . . . . . . . . . . . . . . . . . . . . . . . . . . . . . . . . . Robot Schematics Acquired 8 | . . . . . . . . . . . 3 . . . . 5 . . . . . . . . . . . . . . . . . Robots Built . | . . . . . . . . . . . . . . . . . . . . . . . . . . . . . . . . . . Authchips . | . . . . . . . . . . . . . . . . . . . . . . . . . . . . . . . . . . Time . | . . . . . . . . . . . . . . . . . . . . . . . . . . . . . . . . . . Total Robot Build Rating . | . . . . . . . . . . . . . . . . . . . . . . . . . . . . . . . . . . Part Schematics Acquired 69 | . . . 1 . . . . . . . 14 . 12 . . 12 . 12 . . . . . . . 4 . 14 . . . . . Parts Built 3 | . . . . . . . . . . . . . 3 . . . . . . . . . . . . . . . . . . . . Authchips 2 | . . . . . . . . . . . . . 2 . . . . . . . . . . . . . . . . . . . . Time 89 | . . . . . . . . . . . . . 89 . . . . . . . . . . . . . . . . . . . . Total Part Build Rating 14 | . . . . . . . . . . . . . 14 . . . . . . . . . . . . . . . . . . . . Parts Repaired 8 | . 1 . 3 . . . 2 . . . . . 2 . . . . . . . . . . . . . . . . . . . . Time 347 | . 36 . 88 . . . 118 . . . . . 105 . . . . . . . . . . . . . . . . . . . . Parts Recycled . | . . . . . . . . . . . . . . . . . . . . . . . . . . . . . . . . . . Recycled Matter . | . . . . . . . . . . . . . . . . . . . . . . . . . . . . . . . . . . Retrieved Matter . | . . . . . . . . . . . . . . . . . . . . . . . . . . . . . . . . . . Retrieved Components 3 | . . . . . . . . 3 . . . . . . . . . . . . . . . . . . . . . . . . . Parts Scanalyzed . | . . . . . . . . . . . . . . . . . . . . . . . . . . . . . . . . . . Part Schematics Acquired . | . . . . . . . . . . . . . . . . . . . . . . . . . . . . . . . . . . Parts Damaged . | . . . . . . . . . . . . . . . . . . . . . . . . . . . . . . . . . . Bothacking | -11 -10 -10 -9 -9 -9 -8 -8 -7 -7 -7 -7 -6 -6 -6 -6 -6 -5 -5 -5 -5 -5 -4 -4 -4 -4 -4 -3 -3 -3 -3 -2 -2 -1 ------------ Run | Scr Mat Min Mat Min Exi Min Mat Fac Low Low Zio Pro Fac Low Low Dat Pro Fac Upp Upp War Pro Fac Upp Upp Zhi Pro Res Gar Res Res DSF Acc Used RIF Installer . | . . . . . . . . . . . . . . . . . . . . . . . . . . . . . . . . . . Robots Hacked 16 | . . . . . 4 . . . . . 2 . . . . 1 1 . . . . . 2 . . 3 . 3 . . . . . Non-combat 6 | . . . . . 3 . . . . . . . . . . . . . . . . . 1 . . . . 2 . . . . . Combat 10 | . . . . . 1 . . . . . 2 . . . . 1 1 . . . . . 1 . . 3 . 1 . . . . . Robot Hacks Applied 16 | . . . . . 4 . . . . . 2 . . . . 1 1 . . . . . 2 . . 3 . 3 . . . . . parse_system 15 | . . . . . 4 . . . . . 2 . . . . 1 1 . . . . . 1 . . 3 . 3 . . . . . check_alert 1 | . . . . . . . . . . . . . . . . . . . . . . . 1 . . . . . . . . . . Relay Couplers Released 5 | . . . . . . . . . . . . . . . . . . . . . . . 1 . . . . 4 . . . . . Machine Destruction 1 | . . . . . . . . . . . . . . . . . . . . . . . 1 . . . . . . . . . . Programmers 4 | . . . . . . . . . . . . . . . . . . . . . . . . . . . . 4 . . . . . Fabnet Peak Effective % . | . . . . . . . . . . . . . . . . . . . . . . . . . . . . . . . . . . Robots Rewired 28 | . . . . . . . . . . . . 1 1 . . . . 1 . . 3 13 . . 3 . 3 . 3 . . . . Allies Hacked 3 | . . . . . . . . . . . . . . . . . . . . . . . 1 . . . . 2 . . . . . Hacks Repelled 1 | . . . . . . . . . . . . . . . . . . . . . . . . . . . . 1 . . . . . Allies | -11 -10 -10 -9 -9 -9 -8 -8 -7 -7 -7 -7 -6 -6 -6 -6 -6 -5 -5 -5 -5 -5 -4 -4 -4 -4 -4 -3 -3 -3 -3 -2 -2 -1 -------- Run | Scr Mat Min Mat Min Exi Min Mat Fac Low Low Zio Pro Fac Low Low Dat Pro Fac Upp Upp War Pro Fac Upp Upp Zhi Pro Res Gar Res Res DSF Acc Total Allies 50 | . . 3 . 1 . . . . . . 4 1 2 . . . 1 2 . . 3 13 4 . 3 . 3 3 3 4 . . . Largest Group 8 | . . 3 3 1 1 . . . . . 4 4 1 . . . 1 3 2 2 3 6 8 2 3 1 4 4 3 3 . . . Highest-Rated Group 538 | . . 40 40 31 31 . . . . . 152 152 29 . . . 96 133 105 105 155 332 538 100 164 64 259 334 90 206 . . . Highest-Rated Ally 269 | . . 16 16 31 31 . . . . . 41 41 29 . . . 96 91 91 91 91 68 103 50 64 64 65 269 30 103 . . . Zionite Dispatches 9 | . . . . . . . . . . . . . 1 . . . . 1 . . . . 2 . . . . 2 . 3 . . . Heavy 2 | . . . . . . . . . . . . . . . . . . . . . . . 1 . . . . . . 1 . . . Hacker 1 | . . . . . . . . . . . . . . . . . . . . . . . . . . . . 1 . . . . . Demo 1 | . . . . . . . . . . . . . . . . . . . . . . . 1 . . . . . . . . . . Experimental 1 | . . . . . . . . . . . . . . . . . . . . . . . . . . . . 1 . . . . . Kinetic Resupply 1 | . . . . . . . . . . . . . . . . . . . . . . . . . . . . . . 1 . . . Explosive Resupply 1 | . . . . . . . . . . . . . . . . . . 1 . . . . . . . . . . . . . . . Heavy Resupply 2 | . . . . . . . . . . . . . 1 . . . . . . . . . . . . . . . . 1 . . . Total Orders 66 | . . . . . . . . . . . . . 4 . . . . 9 6 4 2 3 . . 5 2 25 3 . 3 . . . STAY 33 | . . . . . . . . . . . . . 2 . . . . 4 1 2 1 2 . . 4 1 14 1 . 1 . . . FOLLOW 23 | . . . . . . . . . . . . . . . . . . 3 3 1 1 1 . . 1 1 11 1 . . . . . AID 5 | . . . . . . . . . . . . . 1 . . . . 1 2 1 . . . . . . . . . . . . . DROP 4 | . . . . . . . . . . . . . 1 . . . . 1 . . . . . . . . . . . 2 . . . RETURN 1 | . . . . . . . . . . . . . . . . . . . . . . . . . . . . 1 . . . . . Ally Attacks 327 | . . 6 18 2 3 . . . . . . 33 10 . . . 10 3 4 12 11 11 69 1 18 . . 60 . 56 . . . Total Damage 13813 | . . 81 221 . 40 . . . . . . 794 134 . . . 442 101 218 388 559 189 3471 . 1470 . . 3888 . 1817 . . . Kills 62 | . . 2 2 . 1 . . . . . . 7 . . . . 1 2 2 4 1 . 14 . 7 . . 17 . 2 . . . Allies Corrupted 2 | . . . . . . . . . . . . . . . . . . . . . . . . . . . . 1 . 1 . . . Allies Melted . | . . . . . . . . . . . . . . . . . . . . . . . . . . . . . . . . . . Intel | -11 -10 -10 -9 -9 -9 -8 -8 -7 -7 -7 -7 -6 -6 -6 -6 -6 -5 -5 -5 -5 -5 -4 -4 -4 -4 -4 -3 -3 -3 -3 -2 -2 -1 ------- Run | Scr Mat Min Mat Min Exi Min Mat Fac Low Low Zio Pro Fac Low Low Dat Pro Fac Upp Upp War Pro Fac Upp Upp Zhi Pro Res Gar Res Res DSF Acc Robot Analysis Total 9 | . 1 . 2 . . . 2 . . . . . . . . . . . . . . . . . . 4 . . . . . . . Derelict Logs Recovered 21 | . . 2 . 1 . . . . 1 1 2 3 . 1 3 . . . 2 2 . 1 . 1 1 . . . . . . . . Drone Launches 1 | . . . . . . . . . . . . . . . . . . . . . . . . . . . . 1 . . . . . Drone Recoveries 1 | . . . . . . . . . . . . . . . . . . . . . . . . . . . . 1 . . . . . Decoded 0b10 Intel 109 | . . . . . . . . . . . . . 2 . . . . 9 . . . . 18 . . . . 27 4 26 . 8 15 Traps 53 | . . . . . . . . . . . . . . . . . . 8 . . . . 8 . . . . 4 3 15 . 7 8 Emergency Access 51 | . . . . . . . . . . . . . . . . . . 1 . . . . 10 . . . . 22 . 10 . 1 7 Exits 5 | . . . . . . . . . . . . . 2 . . . . . . . . . . . . . . 1 1 1 . . . Zionite Intel Received 9 | . . . . . . . . . . . . . 3 . . . . 1 . . . . 1 . . . . 3 . 1 . . . Emergency Access 1 | . . . . . . . . . . . . . 1 . . . . . . . . . . . . . . . . . . . . Component Schematics 1 | . . . . . . . . . . . . . . . . . . . . . . . . . . . . 1 . . . . . Prototype Schematics 2 | . . . . . . . . . . . . . 1 . . . . 1 . . . . . . . . . . . . . . . Unaware Analyses 2 | . . . . . . . . . . . . . . . . . . . . . . . 1 . . . . 1 . . . . . Trap Installations 2 | . . . . . . . . . . . . . 1 . . . . . . . . . . . . . . 1 . . . . . Active Terminals 1 | . . . . . . . . . . . . . . . . . . . . . . . . . . . . . . 1 . . . Exploration | -11 -10 -10 -9 -9 -9 -8 -8 -7 -7 -7 -7 -6 -6 -6 -6 -6 -5 -5 -5 -5 -5 -4 -4 -4 -4 -4 -3 -3 -3 -3 -2 -2 -1 ------------- Run | Scr Mat Min Mat Min Exi Min Mat Fac Low Low Zio Pro Fac Low Low Dat Pro Fac Upp Upp War Pro Fac Upp Upp Zhi Pro Res Gar Res Res DSF Acc Turns Passed 53360 | 3 781 948 1323 1272 1923 39 3214 1382 1180 1603 1765 1835 3726 2925 2745 145 969 436 2174 2569 1428 2996 841 1704 2311 318 2221 2264 225 1773 4 377 3941 Spaces Moved 24150 | 1 357 529 623 600 803 15 1525 737 754 961 1013 1046 1403 1131 1243 88 565 215 1240 1511 755 1053 312 867 1223 167 865 1147 79 770 3 148 401 Core 1 | . . . . . . . . . . . . . . . . . . . . . . . . . . . . . . . . . 1 Treads 23136 | 1 357 529 623 600 803 15 1525 737 754 961 1013 950 486 1131 1243 88 565 215 1240 1511 755 1053 312 867 1223 167 865 1147 79 770 3 148 400 Legs . | . . . . . . . . . . . . . . . . . . . . . . . . . . . . . . . . . . Wheels 1013 | . . . . . . . . . . . . 96 917 . . . . . . . . . . . . . . . . . . . . Hover . | . . . . . . . . . . . . . . . . . . . . . . . . . . . . . . . . . . Flight . | . . . . . . . . . . . . . . . . . . . . . . . . . . . . . . . . . . Fastest Speed 50 | 160 160 160 160 160 160 160 145 145 145 151 145 130 145 240 160 160 160 160 160 160 160 160 162 162 162 162 162 152 166 160 163 145 50 Average Speed 171 | 160 160 160 160 160 181 160 158 145 147 151 169 153 183 240 203 160 160 160 160 160 174 235 167 162 162 162 182 160 166 164 163 154 144 Slowest Speed 246 | 160 160 160 160 160 240 160 160 145 151 151 225 225 240 240 240 160 245 160 160 160 246 245 245 240 162 162 240 170 166 166 163 163 145 Overloaded Moves . | . . . . . . . . . . . . . . . . . . . . . . . . . . . . . . . . . . Propulsion Burnouts . | . . . . . . . . . . . . . . . . . . . . . . . . . . . . . . . . . . Robots Hopped . | . . . . . . . . . . . . . . . . . . . . . . . . . . . . . . . . . . Cave-ins Triggered . | . . . . . . . . . . . . . . . . . . . . . . . . . . . . . . . . . . Exploration Rate (%) 63 | 2 53 91 63 99 86 10 88 21 86 90 89 94 36 98 97 75 67 6 98 94 87 77 10 77 99 60 75 39 14 27 . 84 16 Regions Visited 33 Branch Regions 20 Pre-discovered Areas 10 | . . 1 . 1 1 . . . . . 2 . . . . 1 . . . . 1 . . . . 3 . . . . . . . Known Exits Taken 25 | . . . 1 . . . 1 1 1 1 1 1 1 1 1 1 1 1 1 1 1 1 1 1 1 1 1 1 . 1 1 . . Unknown Exits Taken 6 | 1 1 1 . 1 1 1 . . . . . . . . . . . . . . . . . . . . . . . . . . . Scrap Searched 37 | . . 1 . . . . . . 6 3 3 4 . 2 2 . 1 . 3 3 . 2 . 2 4 . 1 . . . . . . Spaces Dug 282 | . . 35 . . . . 1 2 6 7 . 18 13 23 6 . 19 1 . . . 31 1 8 12 . 27 31 24 8 . 5 4 Terrain Destroyed 1524 | . . 48 5 28 11 . 44 10 24 16 . 62 104 60 10 . 56 1 43 14 24 171 39 13 22 . 120 49 47 132 . 12 359 Melee 28 | . . . . . . . 1 2 6 3 . . 13 . 2 . . 1 . . . . . . . . . . . . . . . Projectile 209 | . . . . 2 3 . 6 . 2 4 . 4 8 3 7 . . . 4 1 6 26 6 10 5 . 7 34 6 11 . 12 42 AOE 1280 | . . 48 5 26 8 . 37 8 16 9 . 58 83 57 . . 56 . 38 13 18 145 32 3 17 . 113 15 41 117 . . 317 Terrain Rammed . | . . . . . . . . . . . . . . . . . . . . . . . . . . . . . . . . . . Walls Destroyed . | . . . . . . . . . . . . . . . . . . . . . . . . . . . . . . . . . . Machines Disabled . | . . . . . . . . . . . . . . . . . . . . . . . . . . . . . . . . . . Actions | -11 -10 -10 -9 -9 -9 -8 -8 -7 -7 -7 -7 -6 -6 -6 -6 -6 -5 -5 -5 -5 -5 -4 -4 -4 -4 -4 -3 -3 -3 -3 -2 -2 -1 --------- Run | Scr Mat Min Mat Min Exi Min Mat Fac Low Low Zio Pro Fac Low Low Dat Pro Fac Upp Upp War Pro Fac Upp Upp Zhi Pro Res Gar Res Res DSF Acc Total 33450 | 2 499 595 832 884 1098 20 2160 960 810 1073 1055 1227 2223 1302 1385 91 613 292 1382 1620 851 1451 567 1115 1467 201 1333 1432 148 1072 2 237 3451 Wait 5918 | . 86 40 74 260 102 . 353 87 36 66 14 85 328 117 72 . 24 51 90 50 30 142 101 196 132 . 320 87 43 135 . 14 2783 Move 24118 | . 356 528 622 599 802 14 1524 736 753 960 1012 1045 1402 1130 1242 87 564 214 1239 1510 754 1052 311 866 1222 166 864 1147 78 770 2 147 400 Hop . | . . . . . . . . . . . . . . . . . . . . . . . . . . . . . . . . . . Pick Up 222 | . 8 . 26 . 18 . 30 6 1 3 5 6 30 6 3 . 1 4 3 6 4 12 7 1 2 3 5 10 . 9 . 8 5 Fast Attach 127 | . 1 . 6 1 1 . 8 2 1 2 . 3 23 4 2 . 1 . 1 1 10 5 6 . 1 4 1 9 1 12 . 11 10 Attach 104 | . 2 . 4 1 1 1 5 7 . 2 1 2 18 2 4 . . 4 . 2 1 6 1 . . 2 1 5 1 5 . 8 18 Detach 43 | . . . 3 . 1 . 2 3 . . . . 8 2 1 . . 1 . 1 5 4 1 . . . . 1 . 2 . 6 2 Swap 505 | 2 3 5 11 2 16 . 34 26 7 14 13 19 55 12 21 3 11 5 13 14 7 27 25 10 25 5 29 33 8 24 . . 26 Drop 281 | . 6 1 18 2 21 . 43 6 2 4 4 6 35 7 2 . 2 3 5 7 15 11 15 1 3 6 6 16 . 16 . 10 8 Fire 1389 | . 34 18 60 14 132 5 85 37 3 18 4 26 146 19 31 . 7 8 31 26 7 73 28 39 48 12 99 76 11 96 . 32 164 Melee 72 | . . . . . 4 . 1 2 7 3 2 . 16 . 2 1 1 2 . . 4 . 2 . 5 3 8 3 6 . . . . Ram . | . . . . . . . . . . . . . . . . . . . . . . . . . . . . . . . . . . Kick . | . . . . . . . . . . . . . . . . . . . . . . . . . . . . . . . . . . Crush 58 | . 3 3 8 5 . . 11 9 . 1 . . 2 . . . . . . . . 1 . 2 . . . 6 . 3 . 1 3 Escape Stasis . | . . . . . . . . . . . . . . . . . . . . . . . . . . . . . . . . . . Rewire 186 | . . . . . . . . . . . . 34 . . . . . . . . 14 109 1 . 26 . . 2 . . . . . Trap 427 | . . . . . . . 64 39 . . . 1 160 3 5 . 2 . . 3 . 9 69 . 3 . . 37 . . . . 32 Miscellaneous . | . . . . . . . . . . . . . . . . . . . . . . . . . . . . . . . . . . Route ------- -11/Scrapyard -10/Materials -10/Mines (discovered 2 exits: *Mat x2) -9/Materials (discovered 2 exits: *Min x2) -9/Mines (discovered 4 exits: *Mat x2 / *Exi / *Zio) -9/Exiles -8/Mines -8/Materials (discovered 2 exits: *Fac x2) -7/Factory (discovered 3 exits: Sto / *Low x2) -7/Lower Caves -7/Lower Caves (discovered 2 exits: *Fac / *Zio) -7/Zion -6/Proximity Caves -6/Factory (discovered 3 exits: *Fac x2 / *Low) -6/Lower Caves -6/Lower Caves (discovered 2 exits: *Fac / *Dat) -6/Data Miner -5/Proximity Caves -5/Factory (discovered 3 exits: Fac / *Upp x2) -5/Upper Caves -5/Upper Caves (discovered 2 exits: *Fac / *War) -5/Warlord -4/Proximity Caves -4/Factory (discovered 2 exits: Res / *Upp) -4/Upper Caves -4/Upper Caves (discovered 2 exits: *Res / *Zhi) -4/Zhirov -3/Proximity Caves -3/Research (discovered 3 exits: Res x2 / Gar) -3/Garrison -3/Research -2/Research -2/DSF -1/Access To Epsilon Eridani History --------- Turn | Location | Event 4 | -11/Scrapyard | Discovered new exit (range 0) 4 | -11/Scrapyard | Entered Materials 20 | -10/Materials | Central database locked down 304 | -10/Materials | Build established: Mutant 553 | -10/Materials | Repaired Broken Lgt. Treads 714 | -10/Materials | Discovered new exit (range 8) 785 | -10/Materials | Entered Mines 795 | -10/Mines | Learned location of Zion (-7) 872 | -10/Mines | Core integrity fell below 50% 956 | -10/Mines | Learned Materials terminal intel 1023 | -10/Mines | Core integrity fell below 20% 1257 | -10/Mines | Assisted by bots powering up and referring to "LRC-V3" 1322 | -10/Mines | Discovered new exit (range 3) 1328 | -10/Mines | Discovered new exit (range 15) 1733 | -10/Mines | Entered Materials 1733 | -9/Materials | Accompanied by 3 allies 1733 | -9/Materials | Evolved 2 slots: Propulsion x1, Utility x1 1734 | -9/Materials | Loaded intel: 12 terminal locations 1783 | -9/Materials | Repaired Broken Lgt. Treads 1950 | -9/Materials | Identified exit to Mines 2200 | -9/Materials | Build established: Scavenger-Mutant 2853 | -9/Materials | Repaired Lgt. Treads 2879 | -9/Materials | Repaired Lgt. Treads 3056 | -9/Materials | Entered Mines 3057 | -9/Mines | Learned location of Storage (-7) 3074 | -9/Mines | Learned Materials interactive machine intel 3205 | -9/Mines | A weapon hastily lodged in a ceiling crevice suddenly fell to the ground 3231 | -9/Mines | Assembled infested the area 4082 | -9/Mines | Discovered new exit (range 13) 4126 | -9/Mines | Discovered new exit (range 9) 4131 | -9/Mines | A Derelict revealed a hidden shortcut to a safe place 4155 | -9/Mines | Met a Derelict testing a Signal Generator 4320 | -9/Mines | Deemed a non-threat by the Exiles lab entrance 4320 | -9/Mines | Discovered new exit (range 5) 4328 | -9/Mines | Entered Exiles 4328 | -9/Exiles | Accompanied by 1 ally 4379 | -9/Exiles | Met 8R-AWN 4407 | -9/Exiles | Met EX-HEX 4498 | -9/Exiles | Met EX-DEC 4573 | -9/Exiles | Met EX-BIN 4597 | -9/Exiles | Aligned with FarCom system 4599 | -9/Exiles | Given EX-Vault access code 4639 | -9/Exiles | Opened EX-Vault 4659 | -9/Exiles | Found Deploy-a-Sentry 4662 | -9/Exiles | Found Deploy-a-Sentry 4664 | -9/Exiles | Found Deploy-a-Sentry 4674 | -9/Exiles | Found Cloak of Protection 4707 | -9/Exiles | Warned to stay clear of 0b10 Research branches 4828 | -9/Exiles | Attacked by the Exiles 5014 | -9/Exiles | Destroyed 8R-AWN 5178 | -9/Exiles | Build established: Mutant 5503 | -9/Exiles | Build established: Scavenger-Mutant 5712 | -9/Exiles | Destroyed EX-DEC 5876 | -9/Exiles | Destroyed EX-HEX 5901 | -9/Exiles | Destroyed EX-BIN 5919 | -9/Exiles | Found System Purifier 6232 | -9/Exiles | Discovered new exit (range 14) 6251 | -9/Exiles | Entered Mines 6251 | -8/Mines | Discovered new exit (range 14) 6290 | -8/Mines | 99-TNT came to Exiles' defense 6290 | -8/Mines | Entered Materials 6290 | -8/Materials | Evolved 2 slots: Propulsion x1, Utility x1 6291 | -8/Materials | Loaded intel: 19 interactive machine locations 6508 | -8/Materials | Repaired Cold Fusion Reactor 7269 | -8/Materials | Discovered new exit (range 16) 7732 | -8/Materials | Discovered new exit (range 16) 8594 | -8/Materials | Repaired Reactive Plating 9503 | -8/Materials | Identified exit to Factory 9504 | -8/Materials | Entered Factory 9504 | -7/Factory | Evolved 2 slots: Utility x1, Weapon x1 9683 | -7/Factory | Identified exit to Storage 9683 | -7/Factory | Identified exit to Lower Caves 9798 | -7/Factory | Build established: Skirmisher 10723 | -7/Factory | Cargo convoy interrupted 10886 | -7/Factory | Entered Lower Caves 10911 | -7/Lower Caves | Learned 4 Factory zone layouts 11317 | -7/Lower Caves | Encountered a Warlord checkpoint 11874 | -7/Lower Caves | Discovered new exit (range 15) 12057 | -7/Lower Caves | Identified exit to Lower Caves 12066 | -7/Lower Caves | Entered another Lower Caves area 12234 | -7/Lower Caves | Discovered new exit (range 14) 12253 | -7/Lower Caves | Identified exit to Factory 12861 | -7/Lower Caves | Learned Factory machine intel 13115 | -7/Lower Caves | Found Alien Artifact 13115 | -7/Lower Caves | Identified Core Expander 13115 | -7/Lower Caves | Installed Core Expander, added new Power slot 13458 | -7/Lower Caves | Discovered new exit (range 13) 13476 | -7/Lower Caves | Identified exit to Zion 13595 | -7/Lower Caves | Build established: Trapper-Skirmisher 13669 | -7/Lower Caves | Entered Zion 13701 | -7/Zion | Given A8's code to call for help 13748 | -7/Zion | Discovered new exit (range 14) 13905 | -7/Zion | Learned location of Warlord (-5) 13946 | -7/Zion | Learned location of Quarantine (-2) 14022 | -7/Zion | Learned Factory security intel 14291 | -7/Zion | Build established: Trapper-Mutant 14292 | -7/Zion | Visited the Megawrench Repair Shop 14389 | -7/Zion | Given the Hacking Drone Bay 14391 | -7/Zion | Found Prototype Device 14392 | -7/Zion | Identified Hacking Drone Bay 14549 | -7/Zion | Learned 4 Factory zone layouts 14828 | -7/Zion | Megawrench repaired 10 parts 14959 | -7/Zion | Imprinted 14962 | -7/Zion | Declared Zion's savior 15428 | -7/Zion | Identified exit to Proximity Caves 15434 | -7/Zion | Entered Proximity Caves 15434 | -6/Proximity Caves | Accompanied by 4 allies 15844 | -6/Proximity Caves | Learned location of 1 exit from Factory 15858 | -6/Proximity Caves | Learned Factory garrison access intel 15860 | -6/Proximity Caves | Build established: Trapper-Skirmisher 16295 | -6/Proximity Caves | Attracted the attention of an 0b10 outpost 16659 | -6/Proximity Caves | Discovered exit to Factory (range 4) 17269 | -6/Proximity Caves | Entered Factory 17269 | -6/Factory | Accompanied by 1 ally 17269 | -6/Factory | Evolved 2 slots: Utility x2 17270 | -6/Factory | Identified exit to Factory 17273 | -6/Factory | Loaded intel: 280 machine locations 17274 | -6/Factory | Loaded intel: 4 garrison access locations 17714 | -6/Factory | Build established: Trapper-Tank 17956 | -6/Factory | Retrieved Zion intel report: Trap Installations 18084 | -6/Factory | Retrieved Zion intel report: Prototype Schematics 18211 | -6/Factory | Build established: Trapper-Skirmisher 18480 | -6/Factory | Retrieved Zion intel report: Emergency Access 18481 | -6/Factory | Zion Heavy Resupply teleported in 18618 | -6/Factory | Terminal network hard line cut 18850 | -6/Factory | Build established: Trapper-Tank 19431 | -6/Factory | Lost 5 parts (2n2u1w) 19441 | -6/Factory | Destroyed 8 combat bots 19862 | -6/Factory | Fabricated Imp. Medium Treads (x2) 20081 | -6/Factory | Fabricated Kinecellerator? 20119 | -6/Factory | First assault squad dispatched 20503 | -6/Factory | Identified exit to Lower Caves 20589 | -6/Factory | Build established: Trapper-Gunner 20698 | -6/Factory | Repaired Med. Treads 20762 | -6/Factory | Repaired Broken Med. Treads? 20995 | -6/Factory | Entered Lower Caves 21089 | -6/Lower Caves | Build established: Trapper-Skirmisher 21664 | -6/Lower Caves | Build established: Trapper-Gunner 22899 | -6/Lower Caves | Discovered new exit (range 16) 22907 | -6/Lower Caves | Learned Factory terminal intel 22943 | -6/Lower Caves | Identified exit to Lower Caves 22984 | -6/Lower Caves | Encountered a Warlord checkpoint 23051 | -6/Lower Caves | Spotted B-75 Beast 23920 | -6/Lower Caves | Entered another Lower Caves area 24029 | -6/Lower Caves | Encountered a Warlord checkpoint 24131 | -6/Lower Caves | Discovered exit to Factory (range 6) 24164 | -6/Lower Caves | Learned location of 1 exit from Factory 24434 | -6/Lower Caves | Learned Factory terminal intel 24527 | -6/Lower Caves | Spotted B-75 Beast 24820 | -6/Lower Caves | Build established: Trapper-Mutant 25159 | -6/Lower Caves | Build established: Trapper-Gunner 25708 | -6/Lower Caves | Core integrity fell below 50% 25733 | -6/Lower Caves | Lost 3 parts (1p1n1u) 25801 | -6/Lower Caves | Learned location of 1 exit from Factory 26023 | -6/Lower Caves | Discovered new exit (range 11) 26664 | -6/Lower Caves | Identified exit to Data Miner 26665 | -6/Lower Caves | Entered Data Miner 26665 | -6/Data Miner | Discovered new exit (range 6) 26696 | -6/Data Miner | Met Data Miner 26749 | -6/Data Miner | Learned location of Section 7 (-2) 26749 | -6/Data Miner | Acquired the access code to Warlord's prototype stash 26770 | -6/Data Miner | Received God Mode back door access code from Data Miner 26809 | -6/Data Miner | Identified exit to Proximity Caves 26810 | -6/Data Miner | Entered Proximity Caves 26810 | -5/Proximity Caves | Spotted B-75 Beast 26854 | -5/Proximity Caves | Escorted by Enhanced Grunt 26866 | -5/Proximity Caves | Allies destroyed B-75 Beast 27352 | -5/Proximity Caves | Discovered exit to Factory (range 14) 27779 | -5/Proximity Caves | Entered Factory 27779 | -5/Factory | Accompanied by 1 ally 27779 | -5/Factory | Evolved 2 slots: Propulsion x1, Utility x1 27780 | -5/Factory | Identified exit to Upper Caves 27781 | -5/Factory | Identified exit to Factory 27782 | -5/Factory | Loaded intel: 27 terminal locations 28009 | -5/Factory | Retrieved Zion intel report: Prototype Schematics 28010 | -5/Factory | Zion Explosive Resupply teleported in 28210 | -5/Factory | Garrison activated, responded to threat 28215 | -5/Factory | Entered Upper Caves 28215 | -5/Upper Caves | Accompanied by 2 allies 28458 | -5/Upper Caves | Learned 4 Factory zone layouts 28634 | -5/Upper Caves | Build established: Trapper-Mutant 29352 | -5/Upper Caves | Identified exit to Upper Caves 29382 | -5/Upper Caves | Attracted the attention of an 0b10 checkpoint 29498 | -5/Upper Caves | Encountered a Warlord checkpoint 29657 | -5/Upper Caves | Build established: Trapper-Gunner 30389 | -5/Upper Caves | Entered another Upper Caves area 30389 | -5/Upper Caves | Accompanied by 2 allies 30410 | -5/Upper Caves | Discovered exit to Factory (range 13) 30884 | -5/Upper Caves | Learned 8 Factory zone layouts 31888 | -5/Upper Caves | Learned Factory stockpile data 31920 | -5/Upper Caves | Discovered new exit (range 14) 31924 | -5/Upper Caves | Attracted the attention of an 0b10 checkpoint 31958 | -5/Upper Caves | Identified exit to Warlord 32958 | -5/Upper Caves | Entered Warlord 32958 | -5/Warlord | Accompanied by 2 allies 33127 | -5/Warlord | Received a Watcher feed algorithm from an ecstatic Tinkerer 33499 | -5/Warlord | Learned Factory fabricator intel 33499 | -5/Warlord | Learned Armory terminal intel 33499 | -5/Warlord | Learned location of Testing (-3) 33499 | -5/Warlord | Learned Testing stockpile data 33841 | -5/Warlord | Rebuked by Warlord 33856 | -5/Warlord | Opened Warlord's prototype stash 33863 | -5/Warlord | Found Prototype Reactor 33863 | -5/Warlord | Identified Vortex Chain Reactor 33866 | -5/Warlord | Warlord's base attacked by MAIN.C 33876 | -5/Warlord | Found Prototype Device 33876 | -5/Warlord | Identified Exp. Focal Shield 33880 | -5/Warlord | Found Prototype Processor 33880 | -5/Warlord | Identified Exp. Target Analyzer 34075 | -5/Warlord | Found Prototype Energy Gun 34075 | -5/Warlord | Identified Vortex Shotgun 34079 | -5/Warlord | Found Vortex Shotgun 34216 | -5/Warlord | Warlord forces counterattacked 34266 | -5/Warlord | Spotted Striker 34282 | -5/Warlord | Spotted Striker 34304 | -5/Warlord | Destroyed Striker 34304 | -5/Warlord | Destroyed Striker 34313 | -5/Warlord | P-70 Sage assimilated allied 21-PYO(g) 34344 | -5/Warlord | Destroyed 7 combat bots 34350 | -5/Warlord | Discovered new exit (range 12) 34372 | -5/Warlord | Identified exit to Proximity Caves 34386 | -5/Warlord | Entered Proximity Caves 34412 | -4/Proximity Caves | Learned Research garrison access intel 34499 | -4/Proximity Caves | Attracted the attention of an 0b10 checkpoint 34807 | -4/Proximity Caves | Build established: Trapper-Mutant 34960 | -4/Proximity Caves | Spotted B-86 Titan 35028 | -4/Proximity Caves | Destroyed B-86 Titan 35314 | -4/Proximity Caves | Build established: Trapper-Skirmisher 35413 | -4/Proximity Caves | Attracted the attention of an 0b10 outpost 35470 | -4/Proximity Caves | Destroyed 7 combat bots 35741 | -4/Proximity Caves | Snuck into a huge 0b10 base via the rear entrance 36702 | -4/Proximity Caves | Discovered exit to Factory (range 5) 37382 | -4/Proximity Caves | Entered Factory 37382 | -4/Factory | Accompanied by 6 allies 37382 | -4/Factory | Evolved 2 slots: Propulsion x1, Utility x1 37383 | -4/Factory | Identified exit to Upper Caves 37383 | -4/Factory | Identified exit to Research 37385 | -4/Factory | Loaded intel: 26 terminal locations 37386 | -4/Factory | Loaded intel: 6 fabricator locations 37492 | -4/Factory | Spotted B-86 Titan 37496 | -4/Factory | Zion Heavy squad teleported in 37509 | -4/Factory | Allies destroyed B-86 Titan 37538 | -4/Factory | Found Zio. Weapon Casing 37839 | -4/Factory | Incoming assault squad redirected 37898 | -4/Factory | Build established: Trapper-Tank 38029 | -4/Factory | Retrieved Zion intel report: Unaware Analyses 38132 | -4/Factory | First assault squad dispatched 38180 | -4/Factory | Zion Demo squad teleported in 38223 | -4/Factory | Entered Upper Caves 38223 | -4/Upper Caves | Accompanied by 2 allies 38269 | -4/Upper Caves | Encountered a Warlord checkpoint 39061 | -4/Upper Caves | Learned location of 1 exit from Research 39326 | -4/Upper Caves | Build established: Trapper-Mutant 39704 | -4/Upper Caves | Discovered new exit (range 8) 39732 | -4/Upper Caves | Identified exit to Upper Caves 39927 | -4/Upper Caves | Entered another Upper Caves area 39927 | -4/Upper Caves | Accompanied by 2 allies 39968 | -4/Upper Caves | Discovered exit to Research (range 10) 40916 | -4/Upper Caves | Attracted the attention of an 0b10 outpost 41172 | -4/Upper Caves | Spotted B-86 Titan 41206 | -4/Upper Caves | Build established: Trapper-Tank 41263 | -4/Upper Caves | Destroyed B-86 Titan 41527 | -4/Upper Caves | Attracted the attention of an 0b10 checkpoint 41780 | -4/Upper Caves | Discovered new exit (range 14) 42231 | -4/Upper Caves | Identified exit to Zhirov 42238 | -4/Upper Caves | Entered Zhirov 42238 | -4/Zhirov | Accompanied by 1 ally 42238 | -4/Zhirov | Discovered new exit (range 4) 42268 | -4/Zhirov | Met Zhirov 42330 | -4/Zhirov | Learned location of Command (-1) 42340 | -4/Zhirov | Zhirov requested help retrieving the SGEMP Prototype 42368 | -4/Zhirov | Found Alien Artifact 42368 | -4/Zhirov | Identified Integrated Reactor 42368 | -4/Zhirov | Installed Integrated Reactor, increased core energy generation (+10) 42492 | -4/Zhirov | Found Alien Artifact 42554 | -4/Zhirov | Identified exit to Proximity Caves 42556 | -4/Zhirov | Entered Proximity Caves 42556 | -3/Proximity Caves | Accompanied by 1 ally 42582 | -3/Proximity Caves | Build established: Trapper-Mutant 42887 | -3/Proximity Caves | Attacked by a faux Warlord 43010 | -3/Proximity Caves | Build established: Trapper-Tank 44487 | -3/Proximity Caves | Discovered exit to Research (range 16) 44777 | -3/Proximity Caves | Entered Research 44777 | -3/Research | Accompanied by 2 allies 44777 | -3/Research | Evolved 2 slots: Utility x2 44778 | -3/Research | Identified exit to Research 44779 | -3/Research | Loaded intel: 3 garrison access locations 45321 | -3/Research | Retrieved Zion intel report: Trap Installations 45322 | -3/Research | Zion Hacker squad teleported in 45845 | -3/Research | Retrieved Zion intel report: Unaware Analyses 46013 | -3/Research | Retrieved Zion intel report: Component Schematics 46014 | -3/Research | Zion Experimental squad teleported in 46323 | -3/Research | Terminal network hard line cut 46627 | -3/Research | System corruption reached 10% 47041 | -3/Research | Identified exit to Garrison 47041 | -3/Research | Entered Garrison 47137 | -3/Garrison | Triggered checkpoint 47141 | -3/Garrison | Identified exit to Research 47266 | -3/Garrison | Entered Research 47266 | -3/Research | Accompanied by 3 allies 47688 | -3/Research | Incoming investigation squad redirected 47699 | -3/Research | Retrieved Zion intel report: Active Terminals 47700 | -3/Research | Zion Kinetic Resupply teleported in 47979 | -3/Research | Destroyed 12 combat bots 48046 | -3/Research | Zion Heavy squad teleported in 48050 | -3/Research | Spotted B-86 Titan 48070 | -3/Research | Destroyed B-86 Titan 48202 | -3/Research | Build established: Trapper-Gunner 48244 | -3/Research | Zion Heavy Resupply teleported in 48670 | -3/Research | Terminal network hard line cut 48766 | -3/Research | First assault squad dispatched 48790 | -3/Research | Incoming assault squad redirected 49026 | -3/Research | Spotted B-86 Titan 49038 | -3/Research | Incoming assault squad redirected 49039 | -3/Research | Entered another Research area 49039 | -2/Research | Evolved 2 slots: Power x1, Utility x1 49043 | -2/Research | Identified exit to DSF 49043 | -2/Research | Entered DSF 49081 | -2/DSF | Additional patrols routed to DSF 49278 | -2/DSF | Lost 3 parts (1p2w) 49331 | -2/DSF | Discovered new exit (range 11) 49415 | -2/DSF | Identified exit to Access 49420 | -2/DSF | Entered Access 49420 | -1/Access | Evolved 2 slots: Propulsion x2 49517 | -1/Access | Build established: Trapper-Mutant 50196 | -1/Access | First assault squad dispatched 50222 | -1/Access | Incoming assault squad redirected 50263 | -1/Access | Discovered new exit (range 5) 50272 | -1/Access | Identified exit to Surface 50306 | -1/Access | Build established: Trapper-Gunner 50473 | -1/Access | Incoming assault squad redirected 50476 | -1/Access | Incoming assault squad redirected 50688 | -1/Access | Incoming assault squad redirected 50812 | -1/Access | Build established: Trapper-Mutant 50895 | -1/Access | Terminal network hard line cut 51197 | -1/Access | Incoming assault squad redirected 51974 | -1/Access | Lost 3 parts (2n1u) 52436 | -1/Access | Incoming assault squad redirected 52737 | -1/Access | Incoming assault squad redirected 53051 | -1/Access | High security lockdown imminent 53131 | -1/Access | High security lockdown engaged 53321 | -1/Access | System corruption reached 10% 53352 | -1/Access | Core integrity fell below 50% 53361 | *** | Escaped! Last Messages --------------- 53351_ Adv. Heat Sink destroyed. 53351_ U-05 Engineer builds a Wall. 53352_ U-05 Engineer lays Concrete. 53353_ Extracted 73 energy. 53353_ U-05 Engineer lays Concrete. 53354_ Penetrated by Slug. 53355_ Extracted 73 energy. 53355_ Slug penetrates Reinforced Barrier. 53355_ Slug penetrates H-88 Terminator. 53355_ Com. HERF Cannon destroyed. 53355_ U-05 Engineer builds a Wall. 53356_ The unstable cave ceiling collapses. 53356_ Acquired Adv. Energy Well. 53358_ U-05 Engineer builds a Wall. 53358_ Slug penetrates L-61 Swordsman. 53359_ Imp. Trap Extractor dropped Dirty Bomb Trap. 53359_ M-36 Artificer repairs Adv. Heat Sink. 53359_ Slug penetrates H-88 Terminator. 53359_ Installed Dirty Bomb Trap. 53360_ Dropped Huge Storage Unit. Map ----- +----------------------------------------------------+ | ?# ?????? #??????????????????????????????????? | | ?# ""???? #??????????????+???????????????????? | | ?# ""??? #??????????????????????????????????? | | ## """"" #??????????????????????????????????? | | ?+ """"" #??????????????????????????????????? | | ?# """"" #??????????????????????????????????? | | ?# """"" #??????????????????????????????????? | | ## ####?????##########????????????????? | | #" ! # #?????# ##???????????????? | | ## # #????? # #???????????????? | | # #/############ ######## #######??????????? | | % % *% [ = ?????????? | | %=% g gg = [ ??????????? | | ## ######+##gg#h % #;##?????????????? | | ## !! % h ###????????????? | | # ! # #????????????? | | # !! ! =# ?????????????? | | # # i g #?????????????? | | # g %! i #??????????????? | | # # m ## #??????????????? | | """""" # # g ##???????????????? | | """""" # ### gg = ##????????????????? | | """""" |###########?# g % #?????????????????? | | """"?" #???????????# l% #?????????????????? | | """"?" #???????????# !!^/ #?????????????????? | | ? #???????????# @! #?????????????????? | | ? #???????????# "" #?????????????????? | | ? ? ????????????# #?????????????????? | | ? ???+???????????# #?????????????????? | | ?? ???????????????# #?????????????????? | | ??###+???????+??????#""""""""""#?????????????????? | | ?????????????????????????????????????????????????? | | ???????^?????????????????????????????????????????? | | ?????????????????????????????????????????????????? | | ?????????????????????????????????????????????????? | | ?????????????????????????????????????????????????? | | ?????????????????????????????????????????????????? | | ?????????????????????????????????????????????????? | | ?????????????????????????????????????????????????? | | ?????????????????????????????????????????????????? | | ?????????????????????????????????????????????????? | | ?????????????????????????????????????????????????? | | ?????+???????????????????????????????????????????? | | ?????????????????????????????????????????????????? | | ?????????????????????????????????????????????????? | | ?????????????????????????????????????????????????? | | ?????????????????????????????????????????????????? | | ?????????????????????????????????????????????????? | | ?????????????????????????????????????????????????? | | ?????????????????????????????????????????????????? | +----------------------------------------------------+ Best States ------------- Heat Dissipation 108 Energy Generation 85 Energy Capacity 950 Matter Stores 300 Matter Capacity 300 Sight Range 23 Robot Scan Range 19 Terrain Scan Density 10 Jamming Range 16 Corruption Block 20 Armor Coverage 2100 Resistance: KI 30 Resistance: TH 15 Propulsion Shielding 66 Weapon Shielding 100 Evasion (%) 40 Targeting Accuracy 30 Target Analysis 10 Armor Integrity Analysis 30 Recoil Reduction 8 Salvage Targeting 4 Defensive Hacking 7 Authchip Count 1 Trap Extractor Capacity 8 Item Schematics ----------------- Huge Storage Unit | -9/Materials | Hacked Power Amplifier | -7/Zion | Archive Arc Projector | -7/Zion | Archive Mak. Flight Unit | -7/Zion | Archive Hvy. Plasma Cannon | -7/Zion | Archive Imp. Particle Charger | -7/Zion | Archive Plasma Cannon | -7/Zion | Archive Neutrino Core | -7/Zion | Archive Mak. Hammer | -7/Zion | Archive Proton Cannon | -7/Zion | Archive Kinecellerator | -7/Zion | Archive Imp. Medium Treads | -7/Zion | Archive Recalibrator | -7/Zion | Archive Mni. Drone Bay | -7/Zion | Archive Imp. Trap Scanner | -7/Zion | Archive Imp. Lightning Gun | -6/Factory | Z-intel Scatter Rocket Array | -6/Factory | Z-intel Biomechanical Wings | -6/Factory | Z-intel Imp. Cesium-ion Thruster | -6/Factory | Z-intel Imp. Heavy Laser | -6/Factory | Z-intel Imp. Airjet | -6/Factory | Z-intel Imp. VTOL Module | -6/Factory | Z-intel Com. Ion Cannon | -6/Factory | Z-intel Cld. Deuterium Engine | -6/Factory | Z-intel Exp. Propulsion Shielding | -6/Factory | Z-intel Hvy. EM Shotgun | -6/Factory | Z-intel Cld. Aerolev Unit | -6/Factory | Z-intel Combat Drone Bay | -6/Data Miner | Free Lgt. Regenerative Plating | -6/Data Miner | Free Enh. Armored Leg | -6/Data Miner | Free Imp. Matter Compressor | -6/Data Miner | Free Tiamat Missile Launcher | -6/Data Miner | Free Imp. Heavy Treads | -6/Data Miner | Free Adv. Cryofiber Web | -6/Data Miner | Free Phase Gun | -6/Data Miner | Free Imp. Force Field | -6/Data Miner | Free Adv. Datajack | -6/Data Miner | Free Lgt. Particle Reactor | -6/Data Miner | Free Nova Cannon | -6/Data Miner | Free Thunder Hammer | -5/Factory | Z-intel Enh. Flexi-carbon Leg | -5/Factory | Z-intel Enh. Fission Core | -5/Factory | Z-intel Imp. KE Penetrator | -5/Factory | Z-intel Enh. Force Rifle | -5/Factory | Z-intel F-cell Engine | -5/Factory | Z-intel Prc. Grenade Launcher | -5/Factory | Z-intel Cld. VTOL Module | -5/Factory | Z-intel Imp. Energy Well | -5/Factory | Z-intel Ionic Axe | -5/Factory | Z-intel Neutron Cannon | -5/Factory | Z-intel Cld. Plasma Rifle | -5/Factory | Z-intel Assault Drone Bay | -4/Zhirov | Free Exp. Heat Sink | -4/Zhirov | Free Exp. Optical Array | -4/Zhirov | Free Imp. Arc Thrower | -4/Zhirov | Free HERF Cannon | -3/Research | Z-intel Biometal Medium Treads | -3/Research | Z-intel Recoil Stabilizer | -3/Research | Z-intel Imp. Arc Projector | -3/Research | Z-intel Adv. Signal Interpreter | -3/Research | Z-intel Q-thruster | -3/Research | Z-intel Arm. Huge Wheel | -3/Research | Z-intel Particle Charger | -3/Research | Z-intel Mic. Antimatter Reactor | -3/Research | Z-intel Arm. Medium Treads | -3/Research | Z-intel Imp. Recalibrator | -3/Research | Z-intel Hcp. Storage Unit | -3/Research | Z-intel Nanoactuators | -3/Research | Z-intel Imp. Reaction Control System | -3/Research | Z-intel Robot Schematics ------------------ A-02 Transporter | -7/Zion | Archive L-31 Rogue | -7/Zion | Archive X-82 Rainmaker | -7/Zion | Archive A-15 Conveyor | -6/Data Miner | Free H-66 Slayer | -6/Data Miner | Free B-48 Gladiator | -6/Data Miner | Free A-27 Freighter | -6/Data Miner | Free Y-64 Sentinel | -6/Data Miner | Free Fabricated ------------ Imp. Medium Treads | x2 | -6/Factory | Authchip Kinecellerator | x1 | -6/Factory | Authchip Alien Tech Used ----------------- Core Expander Integrated Reactor Achievements -------------- None Challenges ------------ None Game ------ Seed FissionFrostCannon Manual? 0 Play Time 04:27:36 Cumulative 1161.0 hours Start 2022.07.24 @ 15:43:09 End 2022.07.24 @ 22:16:24 Sessions 7 Manual Loads 0 Difficulty Rogue Special Mode None Game No. 808 Rogue 804 Adventurer 4 Explorer 0 Win Type 0 Total 127 Types 97/9/8/5/2/0/1/3/2 Lore% 94 Gallery% 97 Achievement% 98 Wizard Run 0 Options --------- ASCII 0 Keyboard 1 Movement Vi Keybinds 0 Fullscreen 0 Font 16/Terminus Map View 76x50 Tactical HUD 1 Map Filters NONE Filters NONE Steam 1 RUN: f5c21708-e24b-4427-8218-07a32c283a26